Workbook

Sheet Cover
C2: United Energy
C3: Regulatory proposal 2026-31
C5: =REPLACE(LEFT(_xlfn.TEXTAFTER(CELL("filename")," - ",1),FIND("Jan2025",_xlfn.TEXTAFTER(CELL("filename")," - "),1)-4),1,1,UPPER(LEFT(LEFT(_xlfn.TEXTAFTER(CELL("filename")," - ",1),FIND("Jan2025",_xlfn.TEXTAFTER(CELL("filename")," - "),1)-4),1))) -> Metering business case
C6: Model number: | D6: =LEFT(_xlfn.TEXTAFTER(CELL("filename")," MOD "),FIND(" - ",_xlfn.TEXTAFTER(CELL("filename")," MOD "),1)-1) -> 12.04
C8: 2025-01-31

Sheet Summary
B2: Proactive meter replacement - Cost model
B5: Options summary - NPV
B7: Description | C7: NPV | D7: NPV net
B8: ='Option 3'!B2 -> Option 3 - Proactive delayed | C8: ='Option 3'!D50 -> 284091606.1 | D8: =$C$10-C8 -> 6414136.216
B9: ='Option 2'!B2 -> Option 2 - Proactive | C9: ='Option 2'!D50 -> 274662245.7 | D9: =$C$10-C9 -> 15843496.61
B10: ='Option 1'!B2 -> Option 1 - Reactive | C10: ='Option 1'!D35 -> 290505742.3 | D10: -
B13: WACC
B14: 0.0364 | C14: 0.0364
B18: Waterfall - NPV
B21: Reactive failures - Labour | C21: ='Option 1'!D46 -> 129238247.7 | D21: =C21 -> 129238247.7
B22: Reactive failures - Materials | C22: ='Option 1'!D47 -> 120911932.5 | D22: =C22 -> 120911932.5
B23: Reactive faults - Labour | C23: ='Option 1'!D48 -> 26920902.95 | D23: 26920902.95
B24: Reactive Faults - Materials | C24: ='Option 1'!D49 -> 13434659.16 | D24: 13434659.16
B25: Proactive - Labour | C25: =-1*'Option 2'!D66 -> -47154991.67 | D25: =-1*'Option 3'!D66 -> -27662402.31
B26: Proactive - Materials | C26: =-1*'Option 2'!D67 -> -123365575.9 | D26: =-1*'Option 3'!D67 -> -72368115.66
B27: Residual failures - Labour | C27: =-1*'Option 2'!D68 -> -48004459.24 | D27: =-1*'Option 3'!D68 -> -84843440.61
B28: Residual failures - Materials | C28: =-1*'Option 2'!D69 -> -41523908.51 | D28: =-1*'Option 3'!D69 -> -73389942.68
B29: Residual faults - Labour | C29: =-1*'Option 2'!D70 -> -9999542.79 | D29: =-1*'Option 3'!D70 -> -17673266.78
B30: Residual Faults - Materials | C30: =-1*'Option 2'!D71 -> -4613767.612 | D30: =-1*'Option 3'!D71 -> -8154438.075
B31: Total | C31: =SUM(C21:C30) -> 15843496.61 | D31: =SUM(D21:D30) -> 6414136.216

Sheet Result tables
B2: NPV Results
B5: United Energy
B7: option | C7: gross npv | D7: net npv* | E7: bcr*
B8: Option1 - Base Case | C8: 290505742.3 | D8: N/A | E8: N/A
B9: Option 2 | C9: 274664437.7 | D9: =C8-C9 -> 15841304.63 | E9: =C8/C9 -> 1.057675121
B10: Option 3 | C10: 284091606.1 | D10: =C8-C10 -> 6414136.216 | E10: =C8/C10 -> 1.022577704
C13: Reactive | D13: Proactive | E13: Move to 2031
B14: Sensitivity analysis | C14: Base Case | D14: Option 2 | E14: Option 3
B15: Adopting alternative failure rate profile option 1 | C15: 358032836 | D15: 317068863.7 | E15: 347155477.3
B16: Adopting alternative failure rate profile option 2 | C16: 193430852.7 | D16: 243192313.2 | E16: 236565776.6
B17: +10% change in reactive replacement installation costs | C17: 303740876.7 | D17: 281267610.8 | E17: 296599905
B18: -10% change in reactive replacement installation costs | C18: 272941915.8 | D18: 270515812.3 | E18: 276874119.3
B19: "+10% change in tech capital costs" | C19: 301776055.4 | D19: 293237662.4 | E19: 302592149.6
B20: "-10% change in tech capital costs" | C20: 274906737.1 | D20: 258545760.6 | E20: 270881874.6
B21: 6% WACC | C21: 236739372.6 | D21: 243156029.8 | E21: 241293956.7

Sheet Option 3
B2: Option 3 - Proactive delayed
B4: Expenditure / benefits profile
D6: 1 | E6: 2 | F6: 3 | G6: 4 | H6: 5 | I6: 6 | J6: 7 | K6: 8 | L6: 9 | M6: 10 | N6: 11 | O6: 12 | P6: 13 | Q6: 14 | R6: 15
D7: 2026-27 | E7: 2027-28 | F7: 2028-29 | G7: 2029-30 | H7: 2030-31 | I7: 2031-32 | J7: 2032-33 | K7: 2033-34 | L7: 2034-35 | M7: 2035-36 | N7: 2036-37 | O7: 2037-38 | P7: 2038-39 | Q7: 2039-40 | R7: 2040-41
B8: Pro-active Labour Costs | C8: AMI 1Ph 1e | D8: 0 | E8: 0 | F8: 0 | G8: 0 | H8: 0 | I8: 3936661.385 | J8: 4294518.575 | K8: 4294518.575 | L8: 4294518.575 | M8: 4294518.575 | N8: 3041960.336 | O8: 894701.0489 | P8: 0 | Q8: 0 | R8: 0
C9: AMI 1Ph 1e + c | D9: 0 | E9: 0 | F9: 0 | G9: 0 | H9: 0 | I9: 89319.1103 | J9: 97449.58848 | K9: 97449.58848 | L9: 97449.58848 | M9: 97449.58848 | N9: 68992.91484 | O9: 20326.19545 | P9: 0 | Q9: 0 | R9: 0
C10: AMI 1Ph 2e + C | D10: 0 | E10: 0 | F10: 0 | G10: 0 | H10: 0 | I10: 374118.146 | J10: 408150.0047 | K10: 408150.0047 | L10: 408150.0047 | M10: 408150.0047 | N10: 289096.5742 | O10: 85021.57183 | P10: 0 | Q10: 0 | R10: 0
C11: AMI 3Ph | D11: 0 | E11: 0 | F11: 0 | G11: 0 | H11: 0 | I11: 1252376.127 | J11: 1366287.425 | K11: 1366287.425 | L11: 1366287.425 | M11: 1366287.425 | N11: 967678.9018 | O11: 284697.2255 | P11: 0 | Q11: 0 | R11: 0
C12: AMI 3Ph + C | D12: 0 | E12: 0 | F12: 0 | G12: 0 | H12: 0 | I12: 46990.43562 | J12: 51365.40721 | K12: 51365.40721 | L12: 51365.40721 | M12: 51365.40721 | N12: 36296.06062 | O12: 10694.375 | P12: 0 | Q12: 0 | R12: 0
C13: AMI 3Ph CT | D13: 0 | E13: 0 | F13: 0 | G13: 0 | H13: 0 | I13: 179326.2475 | J13: 194972.1617 | K13: 194972.1617 | L13: 194972.1617 | M13: 194972.1617 | N13: 138406.1642 | O13: 40920.08332 | P13: 0 | Q13: 0 | R13: 0
D14: =SUM(D8:D13) -> 0 | E14: =SUM(E8:E13) -> 0 | F14: 0 | G14: 0 | H14: 0 | I14: 5878791.452 | J14: 6412743.162 | K14: 6412743.162 | L14: 6412743.162 | M14: 6412743.162 | N14: 4542430.952 | O14: 1336360.5 | P14: 0 | Q14: 0 | R14: 0
B15: Pro-active Material Costs | C15: AMI 1Ph 1e | D15: 0 | E15: 0 | F15: 0 | G15: 0 | H15: 0 | I15: 10030959.32 | J15: 10942810.9 | K15: 10942810.9 | L15: 10942810.9 | M15: 10942810.9 | N15: 7751182.384 | O15: 2279776.934 | P15: 0 | Q15: 0 | R15: 0
C16: AMI 1Ph 1e + c | D16: 0 | E16: 0 | F16: 0 | G16: 0 | H16: 0 | I16: 262330.6499 | J16: 286209.9028 | K16: 286209.9028 | L16: 286209.9028 | M16: 286209.9028 | N16: 202632.5176 | O16: 59698.13228 | P16: 0 | Q16: 0 | R16: 0
C17: AMI 1Ph 2e + C | D17: 0 | E17: 0 | F17: 0 | G17: 0 | H17: 0 | I17: 1250391.607 | J17: 1364134.153 | K17: 1364134.153 | L17: 1364134.153 | M17: 1364134.153 | N17: 966229.3414 | O17: 284162.2651 | P17: 0 | Q17: 0 | R17: 0
C18: AMI 3Ph | D18: 0 | E18: 0 | F18: 0 | G18: 0 | H18: 0 | I18: 3514154.155 | J18: 3833788.05 | K18: 3833788.05 | L18: 3833788.05 | M18: 3833788.05 | N18: 2715296.754 | O18: 798857.4007 | P18: 0 | Q18: 0 | R18: 0
C19: AMI 3Ph + C | D19: 0 | E19: 0 | F19: 0 | G19: 0 | H19: 0 | I19: 138162.7574 | J19: 151026.1865 | K19: 151026.1865 | L19: 151026.1865 | M19: 151026.1865 | N19: 106718.8195 | O19: 31443.93789 | P19: 0 | Q19: 0 | R19: 0
C20: AMI 3Ph CT | D20: 0 | E20: 0 | F20: 0 | G20: 0 | H20: 0 | I20: 182917.0095 | J20: 198876.2116 | K20: 198876.2116 | L20: 198876.2116 | M20: 198876.2116 | N20: 141177.5576 | O20: 41739.45182 | P20: 0 | Q20: 0 | R20: 0
D21: =SUM(D15:D20) -> 0 | E21: =SUM(E15:E20) -> 0 | F21: 0 | G21: 0 | H21: 0 | I21: 15378915.5 | J21: 16776845.4 | K21: 16776845.4 | L21: 16776845.4 | M21: 16776845.4 | N21: 11883237.37 | O21: 3495678.122 | P21: 0 | Q21: 0 | R21: 0
D23: Year
D24: 2026-27 | E24: 2027-28 | F24: 2028-29 | G24: 2029-30 | H24: 2030-31 | I24: 2031-32 | J24: 2032-33 | K24: 2033-34 | L24: 2034-35 | M24: 2035-36 | N24: 2036-37 | O24: 2037-38 | P24: 2038-39 | Q24: 2039-40 | R24: 2040-41
B25: Pro-active failures Labour Costs | C25: AMI 1Ph 1e | D25: 2239922.071 | E25: 3552344.417 | F25: 5120289.867 | G25: 6863907.45 | H25: 8602611.126 | I25: 9608733.343 | J25: 9658691.386 | K25: 9211525.956 | L25: 8322518.494 | M25: 7000677.828 | N25: 5495794.17 | O25: 4733319.783 | P25: 4731681.815 | Q25: 4696874.982 | R25: 4547819.839
C26: AMI 1Ph 1e + c | D26: 50777.02683 | E26: 80669.95392 | F26: 116295.7711 | G26: 155607.0177 | H26: 195327.7564 | I26: 217849.8248 | J26: 219078.3012 | K26: 208840.9975 | L26: 188775.882 | M26: 158882.9549 | N26: 124485.6142 | O26: 107286.9438 | P26: 107286.9438 | Q26: 106467.9595 | R26: 103192.0223
C27: AMI 1Ph 2e + C | D27: 212935.919 | E27: 337831.0253 | F27: 486886.1686 | G27: 652320.9979 | H27: 817755.8273 | I27: 913167.4987 | J27: 918081.4045 | K27: 875494.2207 | L27: 791138.8374 | M27: 665424.7468 | N27: 522511.9858 | O27: 450031.8749 | P27: 449622.3827 | Q27: 446346.4455 | R27: 432423.7124
C28: AMI 3Ph | D28: 646662.5609 | E28: 1025740.614 | F28: 1478456.264 | G28: 1981992.228 | H28: 2484491.042 | I28: 2774892.834 | J28: 2789412.923 | K28: 2660287.841 | L28: 2403593.4 | M28: 2021922.474 | N28: 1586838.361 | O28: 1366962.719 | P28: 1366444.144 | Q28: 1356591.226 | R28: 1313549.532
C29: AMI 3Ph + C | D29: 24373.00751 | E29: 38374.52246 | F29: 55487.48518 | G29: 74674.74641 | H29: 93343.43301 | I29: 104233.5002 | J29: 104752.0748 | K29: 100084.9032 | L29: 90231.98524 | M29: 76230.47029 | N29: 59636.0822 | O29: 51338.88816 | P29: 51338.88816 | Q29: 50820.31353 | R29: 49264.58964
C30: AMI 3Ph CT | D30: 32094.183 | E30: 50815.78974 | F30: 73549.16937 | G30: 98288.43543 | H30: 123027.7015 | I30: 137737.5354 | J30: 138406.1642 | K30: 131719.876 | L30: 119015.9286 | M30: 100294.3219 | N30: 78898.19987 | O30: 67531.51006 | P30: 67531.51006 | Q30: 67531.51006 | R30: 64856.99481
D31: =SUM(D25:D30) -> 3206764.768 | E31: =SUM(E25:E30) -> 5085776.323 | F31: 7330964.725 | G31: 9826790.875 | H31: 12316556.89 | I31: 13756614.54 | J31: 13828422.25 | K31: 13187953.79 | L31: 11915274.53 | M31: 10023432.8 | N31: 7868164.413 | O31: 6776471.719 | P31: 6773905.684 | Q31: 6724632.437 | R31: 6511106.69
B32: Pro-active failures Material Costs | C32: AMI 1Ph 1e | D32: 1618899.108 | E32: 2567449.682 | F32: 3700679.058 | G32: 4960875.11 | H32: 6217519.646 | I32: 6944692.426 | J32: 6980799.5 | K32: 6657611.597 | L32: 6015083.267 | M32: 5059725.622 | N32: 3972074.027 | O32: 3420997.219 | P32: 3419813.381 | Q32: 3394656.813 | R32: 3286927.513
C33: AMI 1Ph 1e + c | D33: 50928.85903 | E33: 80911.1712 | F33: 116643.5158 | G33: 156072.3099 | H33: 195911.8206 | I33: 218501.2339 | J33: 219733.3837 | K33: 209465.4686 | L33: 189340.3549 | M33: 159358.0428 | N33: 124857.8479 | O33: 107607.7505 | P33: 107607.7505 | Q33: 106786.3173 | R33: 103500.5845
C34: AMI 1Ph 2e + C | D34: 226109.6568 | E34: 358731.667 | F34: 517008.4268 | G34: 692678.237 | H34: 868348.0473 | I34: 969662.5666 | J34: 974880.4817 | K34: 929658.5504 | L34: 840084.3402 | M34: 706592.6774 | N34: 554838.3116 | O34: 477874.0631 | P34: 477439.2368 | Q34: 473960.6267 | R34: 459176.5338
C35: AMI 3Ph | D35: 599642.9605 | E35: 951157.7993 | F35: 1370955.959 | G35: 1837879.226 | H35: 2303840.757 | I35: 2573127.09 | J35: 2586591.407 | K35: 2466855.162 | L35: 2228825.278 | M35: 1874906.097 | N35: 1471457.465 | O35: 1267569.241 | P35: 1267088.373 | Q35: 1257951.872 | R35: 1218039.791
C36: AMI 3Ph + C | D36: 23800.33973 | E36: 37472.87531 | F36: 54183.75214 | G36: 72920.1898 | H36: 91150.23725 | I36: 101784.4316 | J36: 102290.8218 | K36: 97733.30994 | L36: 88111.896 | M36: 74439.36042 | N36: 58234.8738 | O36: 50132.63049 | P36: 50132.63049 | Q36: 49626.24028 | R36: 48107.06966
C37: AMI 3Ph CT | D37: 31350.06585 | E37: 49637.60427 | F37: 71843.90091 | G37: 96009.57668 | H37: 120175.2524 | I37: 134544.0326 | J37: 135197.159 | K37: 128665.8953 | L37: 116256.4942 | M37: 97968.95579 | N37: 77068.91189 | O37: 65965.76357 | P37: 65965.76357 | Q37: 65965.76357 | R37: 63353.25808
D38: =SUM(D32:D37) -> 2550730.99 | E38: =SUM(E32:E37) -> 4045360.8 | F38: 5831314.612 | G38: 7816434.649 | H38: 9796945.76 | I38: 10942311.78 | J38: 10999492.75 | K38: 10489989.98 | L38: 9477701.631 | M38: 7972990.755 | N38: 6258531.438 | O38: 5390146.668 | P38: 5388047.135 | Q38: 5348947.634 | R38: 5179104.749
B45: Capital costs
D47: 2026-27 | E47: 2027-28 | F47: 2028-29 | G47: 2029-30 | H47: 2030-31 | I47: 2031-32 | J47: 2032-33 | K47: 2033-34 | L47: 2034-35 | M47: 2035-36 | N47: 2036-37 | O47: 2037-38 | P47: 2038-39 | Q47: 2039-40 | R47: 2040-41
D48: =D38+D31+D21+D14 -> 5757495.758 | E48: 9131137.122 | F48: 13162279.34 | G48: 17643225.52 | H48: 22113502.65 | I48: 45956633.27 | J48: 48017503.57 | K48: 46867532.34 | L48: 44582564.72 | M48: 41186012.12 | N48: 30552364.18 | O48: 16998657.01 | P48: 12161952.82 | Q48: 12073580.07 | R48: 11690211.44
B50: NPV | D50: 284091606.1
B52: NPV Breakdown
B56: Proactive - Labour | D56: =D14 -> 0 | E56: =E14 -> 0 | F56: 0 | G56: 0 | H56: 0 | I56: 5878791.452 | J56: 6412743.162 | K56: 6412743.162 | L56: 6412743.162 | M56: 6412743.162 | N56: 4542430.952 | O56: 1336360.5 | P56: 0 | Q56: 0 | R56: 0
B57: Proactive - Materials | D57: =D21 -> 0 | E57: =E21 -> 0 | F57: 0 | G57: 0 | H57: 0 | I57: 15378915.5 | J57: 16776845.4 | K57: 16776845.4 | L57: 16776845.4 | M57: 16776845.4 | N57: 11883237.37 | O57: 3495678.122 | P57: 0 | Q57: 0 | R57: 0
B58: Proactive failures - Labour | D58: 2653937.715 | E58: 4209018.924 | F58: 6067150.283 | G58: 8132710.942 | H58: 10193256.2 | I58: 11385056.52 | J58: 11444485.02 | K58: 10914429.49 | L58: 9861152.513 | M58: 8295452.973 | N58: 6511739.96 | O58: 5608248.553 | P58: 5606124.887 | Q58: 5565346.052 | R58: 5388630.866
B59: Proactive failures - Materials | D59: 2295657.891 | E59: 3640824.72 | F59: 5248183.151 | G59: 7034791.184 | H59: 8817251.184 | I59: 9848080.603 | J59: 9899543.477 | K59: 9440990.985 | L59: 8529931.468 | M59: 7175691.68 | N59: 5632678.294 | O59: 4851132.001 | P59: 4849242.422 | Q59: 4814052.87 | R59: 4661194.274
B60: Proactive faults - Labour | D60: =D31-D58 -> 552827.0532 | E60: =E31-E58 -> 876757.3991 | F60: 1263814.442 | G60: 1694079.932 | H60: 2123300.691 | I60: 2371558.011 | J60: 2383937.232 | K60: 2273524.303 | L60: 2054122.014 | M60: 1727979.823 | N60: 1356424.453 | O60: 1168223.166 | P60: 1167780.797 | Q60: 1159286.384 | R60: 1122475.824
B61: Proactive Faults - Materials | D61: =D38-D59 -> 255073.099 | E61: =E38-E59 -> 404536.08 | F61: 583131.4612 | G61: 781643.4649 | H61: 979694.576 | I61: 1094231.178 | J61: 1099949.275 | K61: 1048998.998 | L61: 947770.1631 | M61: 797299.0755 | N61: 625853.1438 | O61: 539014.6668 | P61: 538804.7135 | Q61: 534894.7634 | R61: 517910.4749
B63: NPV
B66: Proactive - Labour | D66: 27662402.31
B67: Proactive - Materials | D67: 72368115.66
B68: Proactive failures - Labour | D68: 84843440.61
B69: Proactive failures - Materials | D69: 73389942.68
B70: Proactive faults - Labour | D70: 17673266.78
B71: Proactive Faults - Materials | D71: 8154438.075
B72: Total | D72: =SUM(D66:D71) -> 284091606.1

Sheet Option 2
B2: Option 2 - Proactive
B4: Expenditure / benefits profile
D6: 1 | E6: 2 | F6: 3 | G6: 4 | H6: 5 | I6: 6 | J6: 7 | K6: 8 | L6: 9 | M6: 10 | N6: 11 | O6: 12 | P6: 13 | Q6: 14 | R6: 15
D7: 2026-27 | E7: 2027-28 | F7: 2028-29 | G7: 2029-30 | H7: 2030-31 | I7: 2031-32 | J7: 2032-33 | K7: 2033-34 | L7: 2034-35 | M7: 2035-36 | N7: 2036-37 | O7: 2037-38 | P7: 2038-39 | Q7: 2039-40 | R7: 2040-41
B8: Pro-active Labour Costs | C8: AMI 1Ph 1e | D8: 3936661.385 | E8: 4294518.575 | F8: 4294518.575 | G8: 4294518.575 | H8: 4294518.575 | I8: 4294518.575 | J8: 4294518.575 | K8: 4294518.575 | L8: 2862973.667 | M8: 715714.3792 | N8: 0 | O8: 0 | P8: 0 | Q8: 0 | R8: 0
C9: AMI 1Ph 1e + c | D9: 89319.1103 | E9: 97449.58848 | F9: 97449.58848 | G9: 97449.58848 | H9: 97449.58848 | I9: 97449.58848 | J9: 97449.58848 | K9: 97449.58848 | L9: 64927.67575 | M9: 16260.95636 | N9: 0 | O9: 0 | P9: 0 | Q9: 0 | R9: 0
C10: AMI 1Ph 2e + C | D10: 374118.146 | E10: 408150.0047 | F10: 408150.0047 | G10: 408150.0047 | H10: 408150.0047 | I10: 408150.0047 | J10: 408150.0047 | K10: 408150.0047 | L10: 272138.7197 | M10: 68063.71734 | N10: 0 | O10: 0 | P10: 0 | Q10: 0 | R10: 0
C11: AMI 3Ph | D11: 1252376.127 | E11: 1366287.425 | F11: 1366287.425 | G11: 1366287.425 | H11: 1366287.425 | I11: 1366287.425 | J11: 1366287.425 | K11: 1366287.425 | L11: 910804.2711 | M11: 227660.5588 | N11: 0 | O11: 0 | P11: 0 | Q11: 0 | R11: 0
C12: AMI 3Ph + C | D12: 46990.43562 | E12: 51365.40721 | F12: 51365.40721 | G12: 51365.40721 | H12: 51365.40721 | I12: 51365.40721 | J12: 51365.40721 | K12: 51365.40721 | L12: 34189.59281 | M12: 8587.9072 | N12: 0 | O12: 0 | P12: 0 | Q12: 0 | R12: 0
C13: AMI 3Ph CT | D13: 178724.4816 | E13: 194972.1617 | F13: 194972.1617 | G13: 194972.1617 | H13: 194972.1617 | I13: 194972.1617 | J13: 194972.1617 | K13: 194972.1617 | L13: 129981.4411 | M13: 32495.36028 | N13: 0 | O13: 0 | P13: 0 | Q13: 0 | R13: 0
D14: =SUM(D8:D13) -> 5878189.686 | E14: =SUM(E8:E13) -> 6412743.162 | F14: 6412743.162 | G14: 6412743.162 | H14: 6412743.162 | I14: 6412743.162 | J14: =SUM(J8:J13) -> 6412743.162 | K14: 6412743.162 | L14: 4275015.367 | M14: 1068782.879 | N14: =SUM(N8:N13) -> 0 | O14: 0 | P14: 0 | Q14: 0 | R14: 0
B15: Pro-active Material Costs | C15: AMI 1Ph 1e | D15: 10030959.32 | E15: 10942810.9 | F15: 10942810.9 | G15: 10942810.9 | H15: 10942810.9 | I15: 10942810.9 | J15: 10942810.9 | K15: 10942810.9 | L15: 7295108.613 | M15: 1823703.163 | N15: 0 | O15: 0 | P15: 0 | Q15: 0 | R15: 0
C16: AMI 1Ph 1e + c | D16: 262330.6499 | E16: 286209.9028 | F16: 286209.9028 | G16: 286209.9028 | H16: 286209.9028 | I16: 286209.9028 | J16: 286209.9028 | K16: 286209.9028 | L16: 190692.8911 | M16: 47758.50583 | N16: 0 | O16: 0 | P16: 0 | Q16: 0 | R16: 0
C17: AMI 1Ph 2e + C | D17: 1250391.607 | E17: 1364134.153 | F17: 1364134.153 | G17: 1364134.153 | H17: 1364134.153 | I17: 1364134.153 | J17: 1364134.153 | K17: 1364134.153 | L17: 909552.1683 | M17: 227485.092 | N17: 0 | O17: 0 | P17: 0 | Q17: 0 | R17: 0
C18: AMI 3Ph | D18: 3514154.155 | E18: 3833788.05 | F18: 3833788.05 | G18: 3833788.05 | H18: 3833788.05 | I18: 3833788.05 | J18: 3833788.05 | K18: 3833788.05 | L18: 2555707.143 | M18: 638813.1178 | N18: 0 | O18: 0 | P18: 0 | Q18: 0 | R18: 0
C19: AMI 3Ph + C | D19: 138162.7574 | E19: 151026.1865 | F19: 151026.1865 | G19: 151026.1865 | H19: 151026.1865 | I19: 151026.1865 | J19: 151026.1865 | K19: 151026.1865 | L19: 100525.3166 | M19: 25250.43497 | N19: 0 | O19: 0 | P19: 0 | Q19: 0 | R19: 0
C20: AMI 3Ph CT | D20: 182303.194 | E20: 198876.2116 | F20: 198876.2116 | G20: 198876.2116 | H20: 198876.2116 | I20: 198876.2116 | J20: 198876.2116 | K20: 198876.2116 | L20: 132584.1411 | M20: 33146.03527 | N20: 0 | O20: 0 | P20: 0 | Q20: 0 | R20: 0
D21: =SUM(D15:D20) -> 15378301.68 | E21: =SUM(E15:E20) -> 16776845.4 | F21: 16776845.4 | G21: 16776845.4 | H21: 16776845.4 | I21: 16776845.4 | J21: =SUM(J15:J20) -> 16776845.4 | K21: 16776845.4 | L21: 11184170.27 | M21: 2796156.349 | N21: =SUM(N15:N20) -> 0 | O21: 0 | P21: 0 | Q21: 0 | R21: 0
D23: Year
D24: 2026-27 | E24: 2027-28 | F24: 2028-29 | G24: 2029-30 | H24: 2030-31 | I24: 2031-32 | J24: 2032-33 | K24: 2033-34 | L24: 2034-35 | M24: 2035-36 | N24: 2036-37 | O24: 2037-38 | P24: 2038-39 | Q24: 2039-40 | R24: 2040-41
B25: Pro-active failures Labour Costs | C25: AMI 1Ph 1e | D25: 1966381.313 | E25: 2676031.212 | F25: 3370120.41 | G25: 3975759.302 | H25: 4394669.774 | I25: 4571570.383 | J25: 4458141.057 | K25: 3984768.13 | L25: 3308696.587 | M25: 3092484.731 | N25: 3341865.451 | O25: 3551115.941 | P25: 3674782.571 | Q25: 3708770.419 | R25: 3655945.932
C26: AMI 1Ph 1e + c | D26: 44634.64455 | E26: 60604.83848 | F26: 76575.0324 | G26: 90088.27341 | H26: 99506.5929 | I26: 103601.5144 | J26: 101144.5615 | K26: 90497.76556 | L26: 74937.06379 | M26: 70023.15797 | N26: 75756.04809 | O26: 80669.95392 | P26: 83536.39898 | Q26: 83945.89113 | R26: 83126.90683
C27: AMI 1Ph 2e + C | D27: 186728.4212 | E27: 254294.6263 | F27: 320222.8628 | G27: 377961.2562 | H27: 417681.9949 | I27: 434471.1731 | J27: 423824.3772 | K27: 378780.2405 | L27: 314489.9726 | M27: 294015.365 | N27: 317765.9098 | O27: 337421.5331 | P27: 349296.8055 | Q27: 352572.7428 | R27: 347658.8369
C28: AMI 3Ph | D28: 567839.2175 | E28: 772676.1955 | F28: 973364.5764 | G28: 1148124.226 | H28: 1268952.114 | I28: 1320291.002 | J28: 1287620.801 | K28: 1150717.099 | L28: 955733.0391 | M28: 892985.5091 | N28: 965067.3824 | O28: 1025222.039 | P28: 1061003.689 | Q28: 1070856.606 | R28: 1055817.942
C29: AMI 3Ph + C | D29: 21261.55974 | E29: 29040.17916 | F29: 36818.79858 | G29: 43041.69411 | H29: 47708.86576 | I29: 49783.16427 | J29: 48227.44039 | K29: 43041.69411 | L29: 35781.64932 | M29: 33707.35081 | N29: 36300.22395 | O29: 38374.52246 | P29: 39930.24634 | Q29: 40448.82097 | R29: 39930.24634
C30: AMI 3Ph CT | D30: 28082.41012 | E30: 38111.84231 | F30: 48141.27449 | G30: 56833.44906 | H30: 62851.10837 | I30: 65525.62362 | J30: 64188.36599 | K30: 56833.44906 | L30: 47472.64568 | M30: 44129.50162 | N30: 48141.27449 | O30: 50815.78974 | P30: 52821.67618 | Q30: 52821.67618 | R30: 52153.04737
D31: =SUM(D25:D30) -> 2814927.566 | E31: =SUM(E25:E30) -> 3830758.894 | F31: 4825242.955 | G31: 5691808.201 | H31: 6291370.45 | I31: 6545242.861 | J31: 6383146.603 | K31: 5704638.378 | L31: 4737110.958 | M31: 4427345.615 | N31: 4784896.29 | O31: 5083619.779 | P31: 5261371.386 | Q31: 5309416.157 | R31: 5234632.912
B32: Pro-active failures Material Costs | C32: AMI 1Ph 1e | D32: 1421198.084 | E32: 1934096.101 | F32: 2435747.653 | G32: 2873471.927 | H32: 3176238.616 | I32: 3304093.171 | J32: 3222112.356 | K32: 2879983.039 | L32: 2391353.71 | M32: 2235087.032 | N32: 2415326.439 | O32: 2566561.804 | P32: 2655941.608 | Q32: 2680506.256 | R32: 2642327.466
C33: AMI 1Ph 1e + c | D33: 44768.10995 | E33: 60786.05755 | F33: 76804.00515 | G33: 90357.65312 | H33: 99804.13504 | I33: 103911.3011 | J33: 101447.0015 | K33: 90768.36972 | L33: 75161.13873 | M33: 70232.53947 | N33: 75982.57194 | O33: 80911.1712 | P33: 83786.18744 | Q33: 84196.90404 | R33: 83375.47083
C34: AMI 1Ph 2e + C | D34: 198280.7759 | E34: 270027.1093 | F34: 340034.1377 | G34: 401344.6408 | H34: 443522.7883 | I34: 461350.6651 | J34: 450045.1822 | K34: 402214.2933 | L34: 333946.57 | M34: 312205.2569 | N34: 337425.1801 | O34: 358296.8407 | P34: 370906.8024 | Q34: 374385.4125 | R34: 369167.4973
C35: AMI 3Ph | D35: 526550.9557 | E35: 716493.9945 | F35: 902590.0856 | G35: 1064642.754 | H35: 1176685.104 | I35: 1224291.08 | J35: 1193996.368 | K35: 1067047.096 | L35: 886240.5582 | M35: 828055.4755 | N35: 894896.1904 | O35: 950676.9309 | P35: 983856.8541 | Q35: 992993.3547 | R35: 979048.1696
C36: AMI 3Ph + C | D36: 20761.99848 | E36: 28357.85159 | F36: 35953.70469 | G36: 42030.38717 | H36: 46587.89904 | I36: 48613.45986 | J36: 47094.28924 | K36: 42030.38717 | L36: 34940.92428 | M36: 32915.36345 | N36: 35447.31448 | O36: 37472.87531 | P36: 38992.04593 | Q36: 39498.43614 | R36: 38992.04593
C37: AMI 3Ph CT | D37: 27431.30762 | E37: 37228.2032 | F37: 47025.09878 | G37: 55515.74162 | H37: 61393.87896 | I37: 64006.38445 | J37: 62700.13171 | K37: 55515.74162 | L37: 46371.97241 | M37: 43106.34055 | N37: 47025.09878 | O37: 49637.60427 | P37: 51596.98338 | Q37: 51596.98338 | R37: 50943.85701
D38: =SUM(D32:D37) -> 2238991.231 | E38: =SUM(E32:E37) -> 3046989.317 | F38: 3838154.685 | G38: 4527363.104 | H38: 5004232.421 | I38: 5206266.061 | J38: 5077395.329 | K38: 4537558.927 | L38: 3768014.874 | M38: 3521602.008 | N38: 3806102.795 | O38: 4043557.226 | P38: 4185080.481 | Q38: 4223177.347 | R38: 4163854.506
B45: Capital costs
D47: 2026-27 | E47: 2027-28 | F47: 2028-29 | G47: 2029-30 | H47: 2030-31 | I47: 2031-32 | J47: 2032-33 | K47: 2033-34 | L47: 2034-35 | M47: 2035-36 | N47: 2036-37 | O47: 2037-38 | P47: 2038-39 | Q47: 2039-40 | R47: 2040-41
D48: =D38+D31+D21+D14 -> 26310410.16 | E48: 30067336.78 | F48: 31852986.2 | G48: 33408759.87 | H48: 34485191.44 | I48: 34941097.49 | J48: 34650130.5 | K48: 33431785.87 | L48: 23964311.47 | M48: 11813886.85 | N48: 8590999.085 | O48: 9127177.005 | P48: 9446451.868 | Q48: 9532593.504 | R48: 9398487.418
B50: Total NPV | D50: =NPV(Summary!$B$14,D48:R48) -> 274662245.7
B52: NPV Breakdown
B56: Proactive - Labour | D56: =D14 -> 5878189.686 | E56: =E14 -> 6412743.162 | F56: 6412743.162 | G56: 6412743.162 | H56: 6412743.162 | I56: 6412743.162 | J56: 6412743.162 | K56: 6412743.162 | L56: 4275015.367 | M56: 1068782.879 | N56: 0 | O56: 0 | P56: 0 | Q56: 0 | R56: 0
B57: Proactive - Materials | D57: =D21 -> 15378301.68 | E57: =E21 -> 16776845.4 | F57: 16776845.4 | G57: 16776845.4 | H57: 16776845.4 | I57: 16776845.4 | J57: 16776845.4 | K57: 16776845.4 | L57: 11184170.27 | M57: 2796156.349 | N57: 0 | O57: 0 | P57: 0 | Q57: 0 | R57: 0
B58: Proactive failures - Labour | D58: =D31*(1-'Labour costs'!$I$14) -> 2329650.902 | E58: =E31*(1-'Labour costs'!$I$14) -> 3170358.988 | F58: =F31*(1-'Labour costs'!$I$14) -> 3993399.949 | G58: =G31*(1-'Labour costs'!$I$14) -> 4710574.533 | H58: =H31*(1-'Labour costs'!$I$14) -> 5206775.839 | I58: =I31*(1-'Labour costs'!$I$14) -> 5416882.166 | J58: =J31*(1-'Labour costs'!$I$14) -> 5282730.333 | K58: =K31*(1-'Labour costs'!$I$14) -> 4721192.865 | L58: =L31*(1-'Labour costs'!$I$14) -> 3920461.381 | M58: =M31*(1-'Labour costs'!$I$14) -> 3664097.729 | N58: =N31*(1-'Labour costs'!$I$14) -> 3960008.808 | O58: =O31*(1-'Labour costs'!$I$14) -> 4207234.155 | P58: =P31*(1-'Labour costs'!$I$14) -> 4354342.449 | Q58: =Q31*(1-'Labour costs'!$I$14) -> 4394104.589 | R58: =R31*(1-'Labour costs'!$I$14) -> 4332213.527
B59: Proactive failures - Materials | D59: =D38*(1-'Labour costs'!$D$14) -> 2015092.108 | E59: =E38*(1-'Labour costs'!$D$14) -> 2742290.385 | F59: =F38*(1-'Labour costs'!$D$14) -> 3454339.216 | G59: =G38*(1-'Labour costs'!$D$14) -> 4074626.793 | H59: =H38*(1-'Labour costs'!$D$14) -> 4503809.179 | I59: =I38*(1-'Labour costs'!$D$14) -> 4685639.455 | J59: =J38*(1-'Labour costs'!$D$14) -> 4569655.796 | K59: =K38*(1-'Labour costs'!$D$14) -> 4083803.034 | L59: =L38*(1-'Labour costs'!$D$14) -> 3391213.386 | M59: =M38*(1-'Labour costs'!$D$14) -> 3169441.807 | N59: =N38*(1-'Labour costs'!$D$14) -> 3425492.515 | O59: =O38*(1-'Labour costs'!$D$14) -> 3639201.503 | P59: =P38*(1-'Labour costs'!$D$14) -> 3766572.433 | Q59: =Q38*(1-'Labour costs'!$D$14) -> 3800859.612 | R59: =R38*(1-'Labour costs'!$D$14) -> 3747469.056
B60: Proactive faults - Labour | D60: =D31-D58 -> 485276.6648 | E60: =E31-E58 -> 660399.9059 | F60: 831843.0058 | G60: 981233.6678 | H60: 1084594.611 | I60: 1128360.695 | J60: 1100416.271 | K60: 983445.5135 | L60: 816649.577 | M60: 763247.886 | N60: 824887.4823 | O60: 876385.624 | P60: 907028.9372 | Q60: 915311.568 | R60: 902419.3841
B61: Proactive Faults - Materials | D61: =D38-D59 -> 223899.1231 | E61: =E38-E59 -> 304698.9317 | F61: 383815.4685 | G61: 452736.3104 | H61: 500423.2421 | I61: 520626.6061 | J61: 507739.5329 | K61: 453755.8927 | L61: 376801.4874 | M61: 352160.2008 | N61: 380610.2795 | O61: 404355.7226 | P61: 418508.0481 | Q61: 422317.7347 | R61: 416385.4506
B63: NPV
B66: Proactive - Labour | D66: =NPV(Summary!$B$14,D56:R56) -> 47154991.67
B67: Proactive - Materials | D67: =NPV(Summary!$B$14,D57:R57) -> 123365575.9
B68: Proactive failures - Labour | D68: =NPV(Summary!$B$14,D58:R58) -> 48004459.24
B69: Proactive failures - Materials | D69: =NPV(Summary!$B$14,D59:R59) -> 41523908.51
B70: Proactive faults - Labour | D70: =NPV(Summary!$B$14,D60:R60) -> 9999542.79
B71: Proactive Faults - Materials | D71: =NPV(Summary!$B$14,D61:R61) -> 4613767.612
B72: Total | D72: =SUM(D66:D71) -> 274662245.7

Sheet Option 1
B2: Option 1 - Reactive
B4: Expenditure / benefits profile
D6: 1 | E6: 2 | F6: 3 | G6: 4 | H6: 5 | I6: 6 | J6: 7 | K6: 8 | L6: 9 | M6: 10 | N6: 11 | O6: 12 | P6: 13 | Q6: 14 | R6: 15
D7: 2026-27 | E7: 2027-28 | F7: 2028-29 | G7: 2029-30 | H7: 2030-31 | I7: 2031-32 | J7: 2032-33 | K7: 2033-34 | L7: 2034-35 | M7: 2035-36 | N7: 2036-37 | O7: 2037-38 | P7: 2038-39 | Q7: 2039-40 | R7: 2040-41
B8: Labour Costs | C8: AMI 1Ph 1e | D8: 2239922.071 | E8: 3552344.417 | F8: 5120289.867 | G8: 6863907.45 | H8: 8686966.51 | I8: 10480951.63 | J8: 12131205 | K8: 13525525.78 | L8: 14562769.4 | M8: 15170046.26 | N8: 15310092.57 | O8: 14982908.34 | P8: 14227804.82 | Q8: 13119719.05 | R8: 11719665.39
C9: AMI 1Ph 1e + c | D9: 50777.02683 | E9: 80669.95392 | F9: 116295.7711 | G9: 155607.0177 | H9: 196965.725 | I9: 237914.9402 | J9: 275178.7261 | K9: 306709.6217 | L9: 330460.1666 | M9: 343973.4076 | N9: 347249.3448 | O9: 339878.486 | P9: 322679.8157 | Q9: 297700.7944 | R9: 265760.4066
C10: AMI 1Ph 2e + C | D10: 212935.919 | E10: 337831.0253 | F10: 486886.1686 | G10: 652320.9979 | H10: 825536.1782 | I10: 996294.4055 | J10: 1153129.9 | K10: 1285395.865 | L10: 1384083.473 | M10: 1441821.867 | N10: 1455335.108 | O10: 1424213.704 | P10: 1352552.578 | Q10: 1246903.602 | R10: 1113818.653
C11: AMI 3Ph | D11: 646662.5609 | E11: 1025740.614 | F11: 1478456.264 | G11: 1981992.228 | H11: 2508864.049 | I11: 3026920.103 | J11: 3503490.186 | K11: 3905904.097 | L11: 4205640.232 | M11: 4380918.456 | N11: 4421367.277 | O11: 4326986.695 | P11: 4108666.776 | Q11: 3788706.231 | R11: 3384736.596
C12: AMI 3Ph + C | D12: 24373.00751 | E12: 38374.52246 | F12: 55487.48518 | G12: 74674.74641 | H12: 94380.58227 | I12: 113567.8435 | J12: 131717.9555 | K12: 146756.6197 | L12: 158165.2615 | M12: 164388.157 | N12: 165943.8809 | O12: 162832.4331 | P12: 154535.2391 | Q12: 142608.0227 | R12: 127050.7838
C13: AMI 3Ph CT | D13: 32094.183 | E13: 50815.78974 | F13: 73549.16937 | G13: 98288.43543 | H13: 124364.9591 | I13: 150441.4828 | J13: 173843.4912 | K13: 193902.3556 | L13: 208612.1895 | M13: 217304.364 | N13: 219310.2505 | O13: 214629.8488 | P13: 203931.7878 | Q13: 187884.6963 | R13: 167825.8319
C14: Percentage failure | D14: 0.01 | E14: 0.016 | F14: 0.024 | G14: 0.032 | H14: 0.04 | I14: 0.048 | J14: 0.056 | K14: 0.063 | L14: 0.067 | M14: 0.07 | N14: 0.071 | O14: 0.069 | P14: 0.066 | Q14: 0.061 | R14: 0.054
C15: Efficiency | D15: =VLOOKUP(D14,'Labour costs'!$B$81:$D$201,2,FALSE) -> 1 | E15: =VLOOKUP(E14,'Labour costs'!$B$81:$D$201,2,FALSE) -> 1 | F15: =VLOOKUP(F14,'Labour costs'!$B$81:$D$201,2,FALSE) -> 0.9931552588 | G15: =VLOOKUP(G14,'Labour costs'!$B$81:$D$201,2,FALSE) -> 0.9794657763 | H15: =VLOOKUP(H14,'Labour costs'!$B$81:$D$201,2,FALSE) -> 0.9657762938 | I15: =VLOOKUP(I14,'Labour costs'!$B$81:$D$201,2,FALSE) -> 0.9520868114 | J15: =VLOOKUP(J14,'Labour costs'!$B$81:$D$201,2,FALSE) -> 0.9383973289 | K15: =VLOOKUP(K14,'Labour costs'!$B$81:$D$201,2,FALSE) -> 0.9264190317 | L15: =VLOOKUP(L14,'Labour costs'!$B$81:$D$201,2,FALSE) -> 0.9195742905 | M15: =VLOOKUP(M14,'Labour costs'!$B$81:$D$201,2,FALSE) -> 0.9144407346 | N15: =VLOOKUP(N14,'Labour costs'!$B$81:$D$201,2,FALSE) -> 0.9127295492 | O15: =VLOOKUP(O14,'Labour costs'!$B$81:$D$201,2,FALSE) -> 0.9161519199 | P15: =VLOOKUP(P14,'Labour costs'!$B$81:$D$201,2,FALSE) -> 0.9212854758 | Q15: =VLOOKUP(Q14,'Labour costs'!$B$81:$D$201,2,FALSE) -> 0.9298414023 | R15: =VLOOKUP(R14,'Labour costs'!$B$81:$D$201,2,FALSE) -> 0.9418196995
D16: =SUM(D8:D13)*D15 -> 3206764.768 | E16: =SUM(E8:E13)*E15 -> 5085776.323 | F16: 7280786.169 | G16: 9625005.352 | H16: 12011435.1 | I16: 14287100.76 | J16: 16298615.24 | K16: 17939358.17 | L16: 19172876.33 | M16: 19860237.67 | N16: 20006391.38 | O16: 19652786.65 | P16: 18766742.69 | Q16: 17465696.81 | R16: 15802658.68
B17: Material Costs | C17: AMI 1Ph 1e | D17: 1654515.313 | E17: 2623934.249 | F17: 3782094.968 | G17: 5070015.664 | H17: 6416615.695 | I17: 7741740.3 | J17: 8960697.651 | K17: 9990610.748 | L17: 10756769.3 | M17: 11205333.51 | N17: 11308778.52 | O17: 11067104.35 | P17: 10509348.18 | Q17: 9690862.179 | R17: 8656714.491
C18: AMI 1Ph 1e + c | D18: 50928.85903 | E18: 80911.1712 | F18: 116643.5158 | G18: 156072.3099 | H18: 197554.687 | I18: 238626.3476 | J18: 276001.5586 | K18: 307626.7372 | L18: 331448.3003 | M18: 345001.9483 | N18: 348287.6811 | O18: 340894.7822 | P18: 323644.6848 | Q18: 298590.9719 | R18: 266555.0767
C19: AMI 1Ph 2e + C | D19: 226109.6568 | E19: 358731.667 | F19: 517008.4268 | G19: 692678.237 | H19: 876609.7463 | I19: 1057932.298 | J19: 1224470.757 | K19: 1364919.64 | L19: 1469712.769 | M19: 1531023.272 | N19: 1545372.539 | O19: 1512325.743 | P19: 1436231.147 | Q19: 1324045.971 | R19: 1182727.435
C20: AMI 3Ph | D20: 599642.9605 | E20: 951157.7993 | F20: 1370955.959 | G20: 1837879.226 | H20: 2326441.574 | I20: 2806829.158 | J20: 3248747.266 | K20: 3621901.185 | L20: 3899843.151 | M20: 4062376.688 | N20: 4099884.427 | O20: 4012366.369 | P20: 3809920.75 | Q20: 3513224.915 | R20: 3138628.39
C21: AMI 3Ph + C | D21: 23800.33973 | E21: 37472.87531 | F21: 54183.75214 | G21: 72920.1898 | H21: 92163.01766 | I21: 110899.4553 | J21: 128623.1126 | K21: 143308.4286 | L21: 154449.0131 | M21: 160525.6956 | N21: 162044.8662 | O21: 159006.525 | P21: 150904.2817 | Q21: 139257.3069 | R21: 124065.6007
C22: AMI 3Ph CT | D22: 31350.06585 | E22: 49637.60427 | F22: 71843.90091 | G22: 96009.57668 | H22: 121481.5052 | I22: 146953.4337 | J22: 169812.8567 | K22: 189406.6479 | L22: 203775.428 | M22: 212266.0709 | N22: 214225.45 | O22: 209653.5654 | P22: 199203.5434 | Q22: 183528.5105 | R22: 163934.7194
D23: =SUM(D17:D22) -> 2586347.195 | E23: =SUM(E17:E22) -> 4101845.366 | F23: 5912730.522 | G23: 7925575.203 | H23: 10030866.23 | I23: 12102980.99 | J23: =SUM(J17:J22) -> 14008353.2 | K23: 15617773.39 | L23: 16815997.96 | M23: 17516527.18 | N23: 17678593.49 | O23: 17301351.33 | P23: 16429252.59 | Q23: 15149509.85 | R23: 13532625.71
B25: EDPR total | C25: =SUM(D16:H16)+SUM(D23:H23) -> 67767132.22
B26: 10 year total | C26: =SUM(D16:M16)+SUM(D23:M23) -> 231386953.1
B29: Capital costs
D32: 2026-27 | E32: 2027-28 | F32: 2028-29 | G32: 2029-30 | H32: 2030-31 | I32: 2031-32 | J32: 2032-33 | K32: 2033-34 | L32: 2034-35 | M32: 2035-36 | N32: 2036-37 | O32: 2037-38 | P32: 2038-39 | Q32: 2039-40 | R32: 2040-41
D33: =D23+D16 -> 5793111.963 | E33: 9187621.689 | F33: 13193516.69 | G33: 17550580.56 | H33: =H23+H16 -> 22042301.33 | I33: 26390081.75 | J33: 30306968.45 | K33: 33557131.55 | L33: 35988874.3 | M33: 37376764.85 | N33: 37684984.87 | O33: 36954137.99 | P33: 35195995.28 | Q33: 32615206.66 | R33: 29335284.39
B35: Total NPV | D35: =NPV(Summary!$B$14,'Option 1'!D33:R33) -> 290505742.3
B38: NPV Breakdown
B41: Reactive failures - Labour | D41: =D16-D43 -> 2653937.715 | E41: 4209018.924 | F41: 6025622.209 | G41: 7965712.036 | H41: 9940735.579 | I41: 11824090.1 | J41: 13488831.52 | K41: 14846720.19 | L41: 15867587.2 | M41: 16436451.56 | N41: 16557409.25 | O41: 16264763.86 | P41: 15531468.57 | Q41: 14454715.21 | R41: 13078374.9
B42: Reactive failures - Materials | D42: =D23-D44 -> 2327712.476 | E42: 3691660.829 | F42: 5321457.47 | G42: 7133017.683 | H42: 9027779.603 | I42: 10892682.89 | J42: 12607517.88 | K42: 14055996.05 | L42: 15134398.17 | M42: 15764874.47 | N42: 15910734.14 | O42: 15571216.2 | P42: 14786327.33 | Q42: 13634558.87 | R42: 12179363.14
B43: Reactive faults - Labour | D43: =D16*'Labour costs'!$I$14 -> 552827.0532 | E43: =OFFSET(E16, 0, 0, 1, 1)*'Labour costs'!$I$14 -> 876757.3991 | F43: =OFFSET(F16, 0, 0, 1, 1)*'Labour costs'!$I$14 -> 1255163.959 | G43: =OFFSET(G16, 0, 0, 1, 1)*'Labour costs'!$I$14 -> 1659293.316 | H43: =OFFSET(H16, 0, 0, 1, 1)*'Labour costs'!$I$14 -> 2070699.522 | I43: =OFFSET(I16, 0, 0, 1, 1)*'Labour costs'!$I$14 -> 2463010.661 | J43: =OFFSET(J16, 0, 0, 1, 1)*'Labour costs'!$I$14 -> 2809783.719 | K43: =OFFSET(K16, 0, 0, 1, 1)*'Labour costs'!$I$14 -> 3092637.979 | L43: =OFFSET(L16, 0, 0, 1, 1)*'Labour costs'!$I$14 -> 3305289.128 | M43: =OFFSET(M16, 0, 0, 1, 1)*'Labour costs'!$I$14 -> 3423786.108 | N43: =OFFSET(N16, 0, 0, 1, 1)*'Labour costs'!$I$14 -> 3448982.134 | O43: =OFFSET(O16, 0, 0, 1, 1)*'Labour costs'!$I$14 -> 3388022.795 | P43: =OFFSET(P16, 0, 0, 1, 1)*'Labour costs'!$I$14 -> 3235274.119 | Q43: =OFFSET(Q16, 0, 0, 1, 1)*'Labour costs'!$I$14 -> 3010981.596 | R43: =OFFSET(R16, 0, 0, 1, 1)*'Labour costs'!$I$14 -> 2724283.775
B44: Reactive Faults - Materials | D44: =D23*'Labour costs'!$D$14 -> 258634.7195 | E44: =E23*'Labour costs'!$D$14 -> 410184.5366 | F44: =F23*'Labour costs'!$D$14 -> 591273.0522 | G44: =G23*'Labour costs'!$D$14 -> 792557.5203 | H44: =H23*'Labour costs'!$D$14 -> 1003086.623 | I44: =I23*'Labour costs'!$D$14 -> 1210298.099 | J44: =J23*'Labour costs'!$D$14 -> 1400835.32 | K44: =K23*'Labour costs'!$D$14 -> 1561777.339 | L44: =L23*'Labour costs'!$D$14 -> 1681599.796 | M44: =M23*'Labour costs'!$D$14 -> 1751652.718 | N44: =N23*'Labour costs'!$D$14 -> 1767859.349 | O44: =O23*'Labour costs'!$D$14 -> 1730135.133 | P44: =P23*'Labour costs'!$D$14 -> 1642925.259 | Q44: =Q23*'Labour costs'!$D$14 -> 1514950.985 | R44: =R23*'Labour costs'!$D$14 -> 1353262.571
B46: Reactive failures - Labour | D46: =NPV(Summary!$B$14,D41:R41) -> 129238247.7
B47: Reactive failures - Materials | D47: =NPV(Summary!$B$14,D42:R42) -> 120911932.5
B48: Reactive faults - Labour | D48: =NPV(Summary!$B$14,D43:R43) -> 26920902.95
B49: Reactive Faults - Materials | D49: =NPV(Summary!$B$14,D44:R44) -> 13434659.16
B50: Total | D50: =SUM(D46:D49) -> 290505742.3

Sheet Unit rate buildup
B2: Information in this sheet has been deleted because it contains confidential pricing information

Sheet Labour costs
B2: Labour cost estimation
B4: Labour rates | C4: 2024 | D4: 2026-06-01 | H4: Escallation factor to $2026
B5: Specialist metering (Office hours) | C5: 175.9082617 | D5: =$H$5*C5 -> 199.024052 | H5: =1.025*1.025*1.025*1.025*1.025 -> 1.131408213
B6: Specialist metering (After hours) | C6: 234.0990758 | D6: =C6*$H$5 -> 264.8616169
B7: Faults (Linesman) rate | C7: 197.8693641 | D7: =C7*$H$5 -> 223.8710237
B9: Electrician charge out rates | C9: 126.74 | D9: =C9*$H$5 -> 143.3946769
B10: Project manager | C10: 159.28 | D10: =C10*$H$5 -> 180.2107001
B13: Assumptions | H13: Blended rates | I13: Overall percentage
B14: Percentage of failed meters will result in faults truck (i.e. hot water / heating complaints) | D14: 0.1 | H14: =D14*(2*D7) -> 44.77420473 | I14: =H14/H19 -> 0.1723940149
B15: Percentage of meters that have an antenna connected | D15: 0.05
B16: Percentage time increase for 3 phase tasks | D16: 0.8
B17: Percentage of jobs that require 2 person crews | D17: 0.15 | H17: =D17*(2*D5) -> 59.7072156
B18: Percentage refusals and double visits | D18: 0.03 | H18: =D18*(2*D5) -> 11.94144312
H19: =((1-(D14+D17+D18))*D5)+SUM(H14:H18) -> 259.7201809
B21: Replace on fail | H21: Proactive replacement
B22: Meter replaced on remote fail, or events. Combination of fault trucks for hot water and overtime when faults get peaky. | H22: Meter replaced proactively, no triage and minimal travel time.
B24: On site time - Single phase | H24: On site time - Single phase
B25: Activity | C25: Description | D25: Time MOG (hour) | E25: Time (minutes) | H25: Activity | I25: Description | J25: Time (hours) | K25: Time (minutes)
B26: Site arrival | C26: Arrive at site. Find appropriate parking. | D26: 0.1 | E26: =D26*60 -> 6 | H26: Site arrival | I26: Not significant in the context of a proactive replacement | J26: 0.05 | K26: =J26*60 -> 3
B27: Customer Contact | C27: Let the customer know that we are there to replace the meter, Locate meter. | D27: 0.1 | E27: 6 | H27: Customer Contact | I27: Let the customer know that we are there to replace the meter, Locate meter. | J27: 0.1 | K27: =J27*60 -> 6
B28: Complete JSEA | C28: Job safety assessment must be carried out to ensure the site is safe to carry out work. | D28: 0.1 | E28: 6 | H28: Complete JSEA | I28: Job safety assessment must be carried out to ensure the site is safe to carry out work. | J28: 0.1 | K28: =J28*60 -> 6
B29: Triage issue | C29: Is the meter working. If yes, why is it reported as faulty. | D29: 0.2 | E29: 12
B30: Final meter read | C30: Read the information out of the meter if it is not read remotely before removing | D30: 0.1 | E30: 6
B31: Disconnect Supply | C31: Disconnect supply from the site. Confirm that supply is isolated and safety VESI test. | D31: 0.1 | E31: 6 | H31: Disconnect Supply | I31: Disconnect supply from the site. Confirm that supply is isolated. | J31: 0.1 | K31: =J31*60 -> 6
B32: Replace meter | C32: Remove cover, disconnect terminals, reconnect terminals with new meter. Replace terminal cover. | D32: 0.15 | E32: 9 | H32: Replace meter | I32: Remove cover, disconnect terminals, reconnect terminals with new meter. Replace terminal cover. | J32: 0.15 | K32: 9
B33: Antenna change | C33: Some sites have antennas that need to be changed over | D33: =$D$15*0.2 -> 0.01 | E33: =D33*60 -> 0.6 | H33: Antenna change | I33: Some sites have antennas that need to be changed over | J33: =$D$15*0.2 -> 0.01 | K33: 0.6
B34: Reconnect supply | C34: Reconnect supply to site. Confirm that supply has returned to site. | D34: 0.1 | E34: =D34*60 -> 6 | H34: Reconnect supply | I34: Reconnect supply to site. Confirm that supply has returned to site. | J34: 0.1 | K34: 6
B35: Complete NST test | C35: Undertake NST test, need to find an indepenent earth etc. | D35: 0.1 | E35: 6 | H35: Complete NST test | I35: Undertake NST test, need to find an indepenent earth etc. | J35: 0.1 | K35: 6
B36: Seal Equipment / complete paperwork | C36: Re-seal the meter. Close out job and pack up. | D36: 0.1 | E36: 6 | H36: Seal Equipment / complete paperwork | I36: Re-seal the meter. Close out job and pack up. | J36: 0.1 | K36: 6
B37: Time at site (hours) | D37: =SUM(D26:D36) -> 1.16 | E37: =SUM(E26:E36) -> 69.6 | H37: Time at site (hours) | J37: =SUM(J26:J36) -> 0.81 | K37: =SUM(K26:K36) -> 48.6
D38: =H19*D37 -> 301.2754098 | H38: Cost | J38: =J37*D9 -> 116.1496883
B40: On site time - Three phase | H40: On site time - Three phase
B41: Activity | C41: Description | D41: Time MOG (hour) | E41: Time MOG (minutes) | H41: Activity | I41: Description | J41: Time (hours) | K41: Time (minutes)
B42: Site arrival | C42: Arrive at site. Find appropriate parking. | D42: =D26 -> 0.1 | E42: =D42*60 -> 6 | H42: Site arrival | I42: Not significant in the context of a proactive replacement | J42: 0.05 | K42: =J42*60 -> 3
B43: Customer Contact | C43: Let the customer know that we are there to replace the meter, Locate meter. | D43: =D27 -> 0.1 | E43: 6 | H43: Customer Contact | I43: Let the customer know that we are there to replace the meter, Locate meter. | J43: =D43 -> 0.1 | K43: =J43*60 -> 6
B44: Complete JSEA | C44: Job safety assessment must be carried out to ensure the site is safe to carry out work. | D44: 0.1 | E44: 6 | H44: Complete JSEA | I44: Job safety assessment must be carried out to ensure the site is safe to carry out work. | J44: =D44 -> 0.1 | K44: =J44*60 -> 6
B45: Triage issue | C45: Is the meter working. If yes, why is it reported as faulty. | D45: 0.3 | E45: 18
B46: Final meter read | C46: Read the information out of the meter if it is not read remotely before removing | D46: =D30 -> 0.1 | E46: 6
B47: Disconnect Supply | C47: Disconnect supply from the site. Confirm that supply is isolated and safety VESI test. | D47: 0.15 | E47: 9 | H47: Disconnect Supply | I47: Disconnect supply from the site. Confirm that supply is isolated. | J47: =D47 -> 0.15 | K47: =J47*60 -> 9
B48: Replace meter | C48: Remove cover, disconnect terminals, reconnect terminals with new meter. Replace terminal cover. | D48: =D32*($D$16+1) -> 0.27 | E48: 16.2 | H48: Replace meter | I48: Remove cover, disconnect terminals, reconnect terminals with new meter. Replace terminal cover. | J48: =D48 -> 0.27 | K48: =J48*60 -> 16.2
B49: Antenna change | C49: Some sites have antennas that need to be changed over | D49: =D33 -> 0.01 | E49: 0.6 | H49: Antenna change | I49: Some sites have antennas that need to be changed over | J49: =J33 -> 0.01 | K49: =K33 -> 0.6
B50: Reconnect supply | C50: Reconnect supply to site. Confirm that supply has returned to site. | D50: 0.15 | E50: 9 | H50: Reconnect supply | I50: Reconnect supply to site. Confirm that supply has returned to site. | J50: =D50 -> 0.15 | K50: =J50*60 -> 9
B51: Complete NST test | C51: Undertake NST test, need to find an indepenent earth etc. | D51: 0.2 | E51: 12 | H51: Complete NST test | I51: Undertake NST test, need to find an indepenent earth etc. | J51: =D51 -> 0.2 | K51: =J51*60 -> 12
B52: Seal Equipment / complete paperwork | C52: Re-seal the meter. Close out job and pack up. | D52: 0.1 | E52: 6 | H52: Seal Equipment / complete paperwork | I52: Re-seal the meter. Close out job and pack up. | J52: =D52 -> 0.1 | K52: =J52*60 -> 6
B53: Time at site (hours) | D53: =SUM(D42:D52) -> 1.58 | E53: =SUM(E42:E52) -> 94.8 | H53: Time at site (hours) | J53: =SUM(J42:J52) -> 1.13 | K53: =SUM(K42:K52) -> 67.8
D54: =D53*H19 -> 410.3578858 | H54: Cost | J54: =J53*D9 -> 162.0359849
B57: Travel time | H57: Travel time
B58: Average travel time per meter | H58: Average travel time per meter
B59: DB | C59: Average cost | D59: Time MOG (hour) | E59: Time MOG (minutes) | H59: DB | I59: Average cost | J59: Time (hours) | K59: Time (minutes)
B60: United Energy | C60: 108.216742 | D60: 0.4166666667 | E60: 25 | H60: United Energy | I60: =J60*D9 -> 16.72937897 | J60: =K60/60 -> 0.1166666667 | K60: 7
D63: United Energy
B64: Base rate | D64: =($D$60+$D$37)*D5 -> 313.7945886
B65: Faults rate | D65: =($D$60+$D$37)*D7*2 -> 705.9399613
B68: Replacement efficiency scale
B70: Assumptions | H70: Notes
H71: Reduction in travel time is not likely to be significant if the crew needs to go back to a depot. The assumptions: - Travel time reduction is likely to reduce by around 25% in rural areas - Minimal reduction in urban area As the failure rate increases we would move to replace on fail for most meters resulting in the removal to triage
B72: Resulting reduction in travel time | C72: 0.1
B73: Move from triage to replace on fail | C73: =D45/D53 -> 0.1898734177
B74: Percentage rural (Powercor) | C74: 0.3
B75: Percentage of meter >10 years old | C75: 0.8
B77: Resultant efficiency @12% | C77: =((E53*(1-C73))+((1-C72)*E60))/(E60+E53) -> 0.8288814691
B80: Efficiency scale (Failure rate >2%) | C80: United Energy
B81: 0 | C81: 1
B82: =ROUND(B81+0.001,3) -> 0.001 | C82: 1
B83: 0.002 | C83: 1
B84: 0.003 | C84: 1
B85: 0.004 | C85: 1
B86: 0.005 | C86: 1
B87: 0.006 | C87: 1
B88: 0.007 | C88: 1
B89: 0.008 | C89: 1
B90: 0.009 | C90: 1
B91: 0.01 | C91: 1
B92: 0.011 | C92: 1
B93: 0.012 | C93: 1
B94: 0.013 | C94: 1
B95: 0.014 | C95: 1
B96: 0.015 | C96: 1
B97: 0.016 | C97: 1
B98: 0.017 | C98: 1
B99: 0.018 | C99: 1
B100: 0.019 | C100: 1
B101: 0.02 | C101: 1
B102: 0.021 | C102: =1-(((100/10)*(B102-0.02))*(1-$C$77)) -> 0.9982888147
B103: 0.022 | C103: 0.9965776294
B104: 0.023 | C104: 0.9948664441
B105: 0.024 | C105: 0.9931552588
B106: 0.025 | C106: 0.9914440735
B107: 0.026 | C107: 0.9897328881
B108: 0.027 | C108: 0.9880217028
B109: 0.028 | C109: 0.9863105175
B110: 0.029 | C110: 0.9845993322
B111: 0.03 | C111: 0.9828881469
B112: 0.031 | C112: 0.9811769616
B113: 0.032 | C113: 0.9794657763
B114: =ROUND(B113+0.001,3) -> 0.033 | C114: 0.977754591
B115: 0.034 | C115: 0.9760434057
B116: 0.035 | C116: 0.9743322204
B117: 0.036 | C117: 0.9726210351
B118: 0.037 | C118: 0.9709098497
B119: 0.038 | C119: 0.9691986644
B120: 0.039 | C120: 0.9674874791
B121: 0.04 | C121: 0.9657762938
B122: 0.041 | C122: 0.9640651085
B123: 0.042 | C123: 0.9623539232
B124: 0.043 | C124: 0.9606427379
B125: 0.044 | C125: 0.9589315526
B126: 0.045 | C126: 0.9572203673
B127: 0.046 | C127: 0.955509182
B128: 0.047 | C128: 0.9537979967
B129: 0.048 | C129: 0.9520868114
B130: 0.049 | C130: 0.950375626
B131: 0.05 | C131: 0.9486644407
B132: 0.051 | C132: 0.9469532554
B133: 0.052 | C133: 0.9452420701
B134: 0.053 | C134: =1-(((100/10)*(B134-0.02))*(1-$C$77)) -> 0.9435308848
B135: 0.054 | C135: 0.9418196995
B136: 0.055 | C136: 0.9401085142
B137: 0.056 | C137: 0.9383973289
B138: 0.057 | C138: 0.9366861436
B139: 0.058 | C139: 0.9349749583
B140: 0.059 | C140: 0.933263773
B141: 0.06 | C141: 0.9315525876
B142: 0.061 | C142: 0.9298414023
B143: 0.062 | C143: 0.928130217
B144: 0.063 | C144: 0.9264190317
B145: 0.064 | C145: 0.9247078464
B146: =ROUND(B145+0.001,3) -> 0.065 | C146: 0.9229966611
B147: 0.066 | C147: 0.9212854758
B148: 0.067 | C148: 0.9195742905
B149: 0.068 | C149: 0.9178631052
B150: 0.069 | C150: 0.9161519199
B151: 0.07 | C151: 0.9144407346
B152: 0.071 | C152: 0.9127295492
B153: 0.072 | C153: 0.9110183639
B154: 0.073 | C154: 0.9093071786
B155: 0.074 | C155: 0.9075959933
B156: 0.075 | C156: 0.905884808
B157: 0.076 | C157: 0.9041736227
B158: 0.077 | C158: 0.9024624374
B159: 0.078 | C159: 0.9007512521
B160: 0.079 | C160: 0.8990400668
B161: 0.08 | C161: 0.8973288815
B162: 0.081 | C162: 0.8956176962
B163: 0.082 | C163: 0.8939065109
B164: 0.083 | C164: 0.8921953255
B165: 0.084 | C165: 0.8904841402
B166: 0.085 | C166: =1-(((100/10)*(B166-0.02))*(1-$C$77)) -> 0.8887729549
B167: 0.086 | C167: 0.8870617696
B168: 0.087 | C168: 0.8853505843
B169: 0.088 | C169: 0.883639399
B170: 0.089 | C170: 0.8819282137
B171: 0.09 | C171: 0.8802170284
B172: 0.091 | C172: 0.8785058431
B173: 0.092 | C173: 0.8767946578
B174: 0.093 | C174: 0.8750834725
B175: 0.094 | C175: 0.8733722871
B176: 0.095 | C176: 0.8716611018
B177: 0.096 | C177: 0.8699499165
B178: =ROUND(B177+0.001,3) -> 0.097 | C178: 0.8682387312
B179: 0.098 | C179: 0.8665275459
B180: 0.099 | C180: 0.8648163606
B181: 0.1 | C181: 0.8631051753
B182: 0.101 | C182: 0.86139399
B183: 0.102 | C183: 0.8596828047
B184: 0.103 | C184: 0.8579716194
B185: 0.104 | C185: 0.8562604341
B186: 0.105 | C186: 0.8545492487
B187: 0.106 | C187: 0.8528380634
B188: 0.107 | C188: 0.8511268781
B189: 0.108 | C189: 0.8494156928
B190: 0.109 | C190: 0.8477045075
B191: 0.11 | C191: 0.8459933222
B192: 0.111 | C192: 0.8442821369
B193: 0.112 | C193: 0.8425709516
B194: 0.113 | C194: 0.8408597663
B195: 0.114 | C195: 0.839148581
B196: 0.115 | C196: 0.8374373957
B197: 0.116 | C197: 0.8357262104
B198: 0.117 | C198: =1-(((100/10)*(B198-0.02))*(1-$C$77)) -> 0.834015025
B199: 0.118 | C199: 0.8323038397
B200: 0.119 | C200: 0.8305926544
B201: 0.12 | C201: 0.8288814691

Sheet Replacement program breakdown
B2: Program level costs
B4: Assumptions
B5: Working days per year | C5: 251
B6: Project duration (days) | C6: =C5*5 -> 1255
B7: Labour rate - Project management (daily) | C7: 900
B8: Labour rate - SME metering (daily) | C8: 1200
B11: Project element (Activity | C11: Category | D11: Scope | E11: Time FTE | F11: Duration | G11: Cost | H11: Notes | J11: 2026-27 | K11: 2027-28 | L11: 2028-29 | M11: 2029-30 | N11: 2030-31
J12: 0.2 | K12: 0.4 | L12: 0.6 | M12: 0.8 | N12: 1
B13: 1.0 ProgramManagement | C13: High level category
B14: 1.1 Industry Planning & Liaison | C14: Program management | D14: Partially in scope | E14: 0.2 | F14: 1 | G14: =F14*E14*$C$7*$C$6 -> 225900 | H14: There will be a some industry communications etc | J14: =IF($F14>=$J$12,1,$F14*5)*$C$5*$C$7*$E14 -> 45180 | K14: =IF($F14>=K$12,1,IF((($F14-K$12)>=0),($F14-K$12)*5,0))*$C$5*$C$7*$E14 -> 45180 | L14: =IF($F14>=L$12,1,IF((($F14-L$12)>=0),($F14-L$12)*5,0))*$C$5*$C$7*$E14 -> 45180 | M14: =IF($F14>=M$12,1,IF((($F14-M$12)>=0),($F14-M$12)*5,0))*$C$5*$C$7*$E14 -> 45180 | N14: =IF($F14>=N$12,1,IF((($F14-N$12)>=0),($F14-N$12)*5,0))*$C$5*$C$7*$E14 -> 45180
B15: 1.2 PMO: ProgramEstablishment | C15: Program management | D15: In scope | E15: 2 | F15: 0.2 | G15: =F15*E15*$C$7*$C$6 -> 451800 | H15: Establish the PMO in the first year | J15: 451800 | K15: =IF($F15>=K$12,1,IF((($F15-K$12)>=0),($F15-K$12)*5,0))*$C$5*$C$7*$E15 -> 0 | L15: 0 | M15: 0 | N15: 0
B16: 1.3 PMO: ProgramOperation Mode | C16: Program management | D16: In scope | E16: 1 | F16: 0.8 | G16: =F16*E16*$C$7*$C$6 -> 903600 | J16: 225900 | K16: 225900 | L16: 225900 | M16: 225900 | N16: 0
B17: 1.4 PMO: ProgramClose-Down | C17: Program management | D17: Out of scope | H17: Will not close down until next EDPR | J17: 0 | K17: 0 | L17: 0 | M17: 0 | N17: 0
B18: 1.5 ProgramManagement Tools | C18: Program management | D18: In scope | E18: 0 | F18: 0.2 | G18: =F18*E18*$C$7*$C$6 -> 0 | H18: Should already have tools, no cost | J18: 0 | K18: 0 | L18: 0 | M18: 0 | N18: 0
B19: 1.6 Commercial & Procurement | C19: Procurement | D19: In scope | E19: 0.5 | F19: 0.2 | G19: =F19*E19*$C$7*$C$6 -> 112950 | H19: Only in the first year | J19: 112950 | K19: 0 | L19: 0 | M19: 0 | N19: 0
B20: 1.7 Management of the AMI Program | C20: Program management | D20: In scope | E20: 1 | F20: 1 | G20: =F20*E20*$C$7*$C$6 -> 1129500 | H20: PMO manager | J20: 225900 | K20: 225900 | L20: 225900 | M20: 225900 | N20: 225900
B21: 1.8 AMI ProgramFinance Reporting | C21: Program management | D21: In scope | E21: 0.3 | F21: 1 | G21: =F21*E21*$C$7*$C$6 -> 338850 | J21: 67770 | K21: 67770 | L21: 67770 | M21: 67770 | N21: 67770
B22: 1.9 AMI Collaboration Sites (Sharepoint) | C22: Program management | D22: Out of scope | J22: 0 | K22: 0 | L22: 0 | M22: 0 | N22: 0
B23: 1.10 Reporting Metering ProcessPerformance | C23: Program management | D23: In scope | E23: 0 | F23: 1 | G23: =F23*E23*$C$7*$C$6 -> 0 | H23: Should already have tools | J23: 0 | K23: 0 | L23: 0 | M23: 0 | N23: 0
B24: 1.11 AMI Field Deployment Reporting | C24: Program management | D24: In scope | E24: 0.1 | F24: 1 | G24: =F24*E24*$C$7*$C$6 -> 112950 | J24: 22590 | K24: 22590 | L24: 22590 | M24: 22590 | N24: 22590
B25: 1.12 Meter SupplyContract Review | C25: Procurement | D25: In scope | E25: 0 | F25: 1 | G25: =F25*E25*$C$7*$C$6 -> 0 | H25: Covered above | J25: 0 | K25: 0 | L25: 0 | M25: 0 | N25: 0
B26: 1.13 Gateway Review | C26: Out of scope | D26: Out of scope | J26: 0 | K26: 0 | L26: 0 | M26: 0 | N26: 0
B27: 1.14 HAN Pilot | C27: Out of scope | D27: Out of scope | H27: Possibly if we move to WiFi etc | J27: 0 | K27: 0 | L27: 0 | M27: 0 | N27: 0
B28: 1.15 Remote Configuration of Meters | C28: AMI operations | D28: In scope | E28: 0.1 | F28: 1 | G28: 112950 | J28: 22590 | K28: 22590 | L28: 22590 | M28: 22590 | N28: 22590
B29: 1.16 Implement Reporting | C29: Program management | D29: In scope | E29: 0.1 | F29: 1 | G29: 112950 | J29: 22590 | K29: 22590 | L29: 22590 | M29: 22590 | N29: 22590
B30: 1.18 CIS to UIQ Automation for BAU Process | C30: Out of scope | D30: Out of scope | H30: Already done | J30: 0 | K30: 0 | L30: 0 | M30: 0 | N30: 0
J31: 0 | K31: 0 | L31: 0 | M31: 0 | N31: 0
B32: 2.0 Technology | J32: 0 | K32: 0 | L32: 0 | M32: 0 | N32: 0
B33: 2.1 RFP | C33: Procurement | D33: In scope | E33: 0.5 | F33: 0.2 | G33: =F33*E33*$C$7*$C$6 -> 112950 | H33: If we are doing a mass rollout there will need to be best pricing etc | J33: 112950 | K33: 0 | L33: 0 | M33: 0 | N33: 0
B34: 2.2 DPI Trials | C34: AMI technology | D34: Partially in scope | E34: 1 | F34: 0.1 | G34: =F34*E34*$C$7*$C$6 -> 112950 | H34: Half a year of testing | J34: 112950 | K34: 0 | L34: 0 | M34: 0 | N34: 0
B35: 2.3 Establish Backhaul | C35: Out of scope | D35: Out of scope | H35: Possibly augmentation not rollout | J35: 0 | K35: 0 | L35: 0 | M35: 0 | N35: 0
B36: 2.4 Technology Acceptance | C36: AMI technology | D36: In scope | E36: 2 | F36: 1 | G36: =F36*E36*$C$8*$C$6 -> 3012000 | H36: Needed for the DI meters | J36: 451800 | K36: 451800 | L36: 451800 | M36: 451800 | N36: 451800
B37: 2.5 Pilot & Roll-out Preparation | D37: In scope | E37: 1 | F37: 0.2 | G37: 225900 | J37: 225900 | K37: 0 | L37: 0 | M37: 0 | N37: 0
B38: 2.6 Establish Test Lab | D38: In scope | G38: 200000 | H38: DI Test lab for new meters and issues | J38: =G38 -> 200000 | K38: 0 | L38: 0 | M38: 0 | N38: 0
B39: 2.7 Establish Asset Mgmt System | D39: Partially in scope | E39: 0 | F39: 1 | G39: 300000 | H39: Would be good to update asset management systems | J39: =IF($F39>=$J$12,1,$F39*5)*$C$5*$C$7*$E39 -> 0 | K39: 0 | L39: 0 | M39: 0 | N39: 0
B40: 2.8 Establish Security Systems | C40: Out of scope | D40: Out of scope | J40: 0 | K40: 0 | L40: 0 | M40: 0 | N40: 0
B41: 2.9 NMS Implementation | C41: Out of scope | D41: Out of scope | J41: 0 | K41: =IF($F41>=K$12,1,IF((($F41-K$12)>=0),($F41-K$12)*5,0))*$C$5*$C$7*$E41 -> 0 | L41: 0 | M41: 0 | N41: 0
B42: 2.11 Establish ACC | C42: Out of scope | D42: Out of scope | J42: 0 | K42: 0 | L42: 0 | M42: 0 | N42: 0
B43: 2.12 AMI Meter Solutions | C43: Out of scope | D43: Out of scope | J43: 0 | K43: 0 | L43: 0 | M43: 0 | N43: 0
B44: 2.13 NMS Integration | C44: Out of scope | D44: Out of scope | J44: 0 | K44: 0 | L44: 0 | M44: 0 | N44: 0
B45: 2.14 DCI Sentry | C45: Out of scope | D45: Out of scope | J45: 0 | K45: 0 | L45: 0 | M45: 0 | N45: 0
B46: 2.15 Develop HomeArea Network (HAN) Capability | C46: Out of scope | D46: Out of scope | J46: 0 | K46: 0 | L46: 0 | M46: 0 | N46: 0
B47: 2.19 BAU & Support (Pre-deploy) | C47: Out of scope | D47: Out of scope | J47: 0 | K47: 0 | L47: 0 | M47: 0 | N47: 0
B48: 2.20 AMI Generation 2 Scoping | C48: Out of scope | D48: Out of scope | J48: 0 | K48: 0 | L48: 0 | M48: 0 | N48: 0
B49: 2.21 UIQ Upgrade | D49: In scope | H49: Captured separately | J49: 0 | K49: 0 | L49: 0 | M49: 0 | N49: 0
B50: 2.31 AMI Operate Centre Setup | C50: Out of scope | D50: Out of scope | J50: 0 | K50: 0 | L50: 0 | M50: 0 | N50: 0
B51: 2.32 TAG Automation | C51: AMI technology | D51: Out of scope | J51: 0 | K51: 0 | L51: 0 | M51: 0 | N51: 0
B52: 2.33 Information Security Management System (ISMS) | D52: Out of scope | J52: 0 | K52: 0 | L52: 0 | M52: 0 | N52: 0
J53: 0 | K53: 0 | L53: 0 | M53: 0 | N53: 0
B54: 3.0 Business Transformation | J54: 0 | K54: 0 | L54: 0 | M54: 0 | N54: 0
B55: 3.1 Transformation Strategy | C55: Out of scope | D55: Out of scope | J55: 0 | K55: 0 | L55: 0 | M55: 0 | N55: 0
B56: 3.2 OpportunityDevelopment | C56: Out of scope | D56: Out of scope | J56: 0 | K56: 0 | L56: 0 | M56: 0 | N56: 0
B57: 3.3 Scope & Structure | C57: Out of scope | D57: Out of scope | J57: 0 | K57: 0 | L57: 0 | M57: 0 | N57: 0
B58: 3.4 Process Architecture Management | C58: Out of scope | D58: Out of scope | J58: 0 | K58: 0 | L58: 0 | M58: 0 | N58: 0
B59: 3.5 OrganisationalChange Management | C59: Out of scope | D59: Out of scope | J59: 0 | K59: 0 | L59: 0 | M59: 0 | N59: 0
B60: 3.7 ImplementationManagement | C60: Out of scope | D60: Out of scope | J60: 0 | K60: 0 | L60: 0 | M60: 0 | N60: 0
B61: 3.8 Resource Management | D61: In scope | E61: 0.1 | F61: 1 | G61: =F61*E61*$C$7*$C$6 -> 112950 | J61: 22590 | K61: 22590 | L61: 22590 | M61: 22590 | N61: 22590
B62: 3.9 Performance Management | D62: In scope | E62: 0.1 | F62: 1 | G62: =F62*E62*$C$7*$C$6 -> 112950 | J62: 22590 | K62: 22590 | L62: 22590 | M62: 22590 | N62: 22590
B63: 3.10 Network Impact Assessment | D63: In scope | E63: 0 | F63: 1 | G63: 0 | J63: 0 | K63: 0 | L63: 0 | M63: 0 | N63: 0
B64: 3.11 Continual Improvement | D64: In scope | E64: 0 | F64: 1 | G64: 0 | J64: 0 | K64: 0 | L64: 0 | M64: 0 | N64: 0
B65: 3.12 Scope Assessment – Vic. AMI Program Ph2(Active 2012) | C65: Out of scope | D65: Out of scope | J65: 0 | K65: 0 | L65: 0 | M65: 0 | N65: 0
B66: 3.13 AMI Operating Model Implementation | C66: Out of scope | D66: Out of scope | J66: 0 | K66: 0 | L66: 0 | M66: 0 | N66: 0
B67: 3.14 Transition Planning & Implementation | D67: Partially in scope | E67: 0.1 | F67: 1 | G67: 112950 | J67: 22590 | K67: 22590 | L67: 22590 | M67: 22590 | N67: 22590
J68: 0 | K68: 0 | L68: 0 | M68: 0 | N68: 0
B69: 4.0 Information Technology | J69: 0 | K69: 0 | L69: 0 | M69: 0 | N69: 0
B70: 4.1 IT ProgramManagement | D70: Partially in scope | E70: 0.5 | F70: 1 | G70: =F70*E70*$C$7*$C$6 -> 564750 | J70: 112950 | K70: 112950 | L70: 112950 | M70: 112950 | N70: 112950
B71: 4.2 MCR A and Faults Management Mobility | D71: In scope | G71: 0 | H71: Mobility solutions for field crew - will need to provide ipads etc as well as mobility | J71: =G71 -> 0 | K71: 0 | L71: 0 | M71: 0 | N71: 0
B72: 4.4 Interval Meter Billing (IMB) | C72: Out of scope | D72: Out of scope | J72: =IF($F72>=$J$12,1,$F72*5)*$C$5*$C$7*$E72 -> 0 | K72: 0 | L72: 0 | M72: 0 | N72: 0
B73: 4.5 MMS & Scaling | C73: Out of scope | D73: Out of scope | J73: 0 | K73: 0 | L73: 0 | M73: 0 | N73: 0
B74: 4.6 Systems Integration(USB) Establishment | C74: Out of scope | D74: Out of scope | J74: 0 | K74: 0 | L74: 0 | M74: 0 | N74: 0
B75: 4.7 Infrastructure Development | C75: Out of scope | D75: Out of scope | J75: 0 | K75: 0 | L75: 0 | M75: 0 | N75: 0
B76: 4.8 AMI Reporting | C76: Out of scope | D76: Out of scope | J76: 0 | K76: 0 | L76: 0 | M76: 0 | N76: 0
B77: 4.9 Systems Integration | C77: Out of scope | D77: Out of scope | J77: 0 | K77: 0 | L77: 0 | M77: 0 | N77: 0
B78: 4.10 Type 6 Meter DataTime Reference | C78: Out of scope | D78: Out of scope | J78: 0 | K78: 0 | L78: 0 | M78: 0 | N78: 0
B79: 4.11 Infrastructure Production | C79: Out of scope | D79: Out of scope | J79: 0 | K79: 0 | L79: 0 | M79: 0 | N79: 0
B80: 4.12 Infrastr’ctr Disaster Recovery | C80: Out of scope | D80: Out of scope | J80: 0 | K80: 0 | L80: 0 | M80: 0 | N80: 0
B81: 4.13 Infrastructure Growth 2010 | C81: Out of scope | D81: Out of scope | J81: 0 | K81: 0 | L81: 0 | M81: 0 | N81: 0
B82: 4.14 Oracle Fusion 11g Technical Upgrade | C82: Out of scope | D82: Out of scope | J82: 0 | K82: 0 | L82: 0 | M82: 0 | N82: 0
B83: 4.15 Field Systems Enhancement | C83: Out of scope | D83: Out of scope | J83: 0 | K83: 0 | L83: 0 | M83: 0 | N83: 0
B84: 4.16 AMI Oracle 11G Migration | C84: Out of scope | D84: Out of scope | J84: 0 | K84: 0 | L84: 0 | M84: 0 | N84: 0
B85: 4.17 IEE / MTS Upgrade | C85: Out of scope | D85: Out of scope | H85: Assume we would not need an upgrade as the meter data should not change | J85: 0 | K85: 0 | L85: 0 | M85: 0 | N85: 0
B86: 4.18 Infrastructure Growth 2011 Implementation | C86: Out of scope | D86: Out of scope | J86: 0 | K86: 0 | L86: 0 | M86: 0 | N86: 0
B87: 4.19 Infrastructure Growth 2012 | C87: Out of scope | D87: Out of scope | J87: 0 | K87: 0 | L87: 0 | M87: 0 | N87: 0
B88: 4.20 NMS Hardware Entity Name Upgrade to 1.2M meters WBS # | C88: Out of scope | D88: Out of scope | J88: 0 | K88: 0 | L88: 0 | M88: 0 | N88: 0
B89: 4.26 Data Warehouse/Analytics Tool | C89: Out of scope | D89: Out of scope | J89: 0 | K89: 0 | L89: 0 | M89: 0 | N89: 0
B90: 4.27 MobilityConnections | C90: In scope | D90: In scope | J90: 0 | K90: 0 | L90: 0 | M90: 0 | N90: 0
B91: 4.31 AMI IT Security | C91: Out of scope | D91: Out of scope | J91: 0 | K91: 0 | L91: 0 | M91: 0 | N91: 0
B92: 4.35 IEE License Growth | C92: Out of scope | D92: Out of scope | J92: 0 | K92: 0 | L92: 0 | M92: 0 | N92: 0
B93: 4.37 Service Suite Upgrade | C93: Out of scope | D93: Out of scope | J93: 0 | K93: 0 | L93: 0 | M93: 0 | N93: 0
B94: 4.38 Rollout Decomm Project | C94: Out of scope | D94: Out of scope | J94: 0 | K94: 0 | L94: 0 | M94: 0 | N94: 0
B95: 4.39 Infrastructure Growth 2013 | C95: Out of scope | D95: Out of scope | J95: 0 | K95: 0 | L95: 0 | M95: 0 | N95: 0
B96: 4.40 Infrastructure Growth 2014 | C96: Out of scope | D96: Out of scope | J96: 0 | K96: 0 | L96: 0 | M96: 0 | N96: 0
B97: 4.41 Infrastructure Growth 2015 | C97: Out of scope | D97: Out of scope | J97: 0 | K97: 0 | L97: 0 | M97: 0 | N97: 0
B98: 4.42 Infrastructure Growth 2016 | C98: Out of scope | D98: Out of scope | J98: 0 | K98: 0 | L98: 0 | M98: 0 | N98: 0
B99: 4.44 IDAM Technical Upgrade | C99: Out of scope | D99: Out of scope | J99: 0 | K99: 0 | L99: 0 | M99: 0 | N99: 0
B100: 4.45 Faults MobilityRefinements | C100: Out of scope | D100: Out of scope | J100: 0 | K100: 0 | L100: 0 | M100: 0 | N100: 0
J101: 0 | K101: 0 | L101: 0 | M101: 0 | N101: 0
B102: 5.0 Field Implementation | J102: 0 | K102: 0 | L102: 0 | M102: 0 | N102: 0
B103: 5.1 Field Implementation Project Scoping | D103: In scope | E103: 1 | F103: 0.2 | G103: =F103*E103*$C$7*$C$6 -> 225900 | J103: 225900 | K103: 0 | L103: 0 | M103: 0 | N103: 0
B104: 5.2 DeploymentPlanning | D104: In scope | E104: 0.5 | F104: 1 | G104: =F104*E104*$C$7*$C$6 -> 564750 | J104: =IF($F104>=$J$12,1,$F104*5)*$C$5*$C$7*$E104 -> 112950 | K104: 112950 | L104: 112950 | M104: 112950 | N104: =IF($F104>=N$12,1,IF((($F104-N$12)>=0),($F104-N$12)*5,0))*$C$5*$C$7*$E104 -> 112950
B105: 5.3 EnablingTechnology | D105: In scope | E105: 0.1 | F105: 1 | G105: 112950 | J105: 22590 | K105: 22590 | L105: 22590 | M105: 22590 | N105: 22590
B106: 5.4 Resource Mobilisation | D106: In scope | E106: 1 | F106: 1 | G106: 1129500 | J106: 225900 | K106: 225900 | L106: 225900 | M106: 225900 | N106: 225900
B107: 5.5 OrganisationalChange Management | D107: In scope | E107: 0 | F107: 1 | G107: 0 | J107: 0 | K107: 0 | L107: 0 | M107: 0 | N107: 0
B108: 5.6 QualityManagement | D108: In scope | E108: 2 | F108: 1 | G108: 2259000 | H108: Auditing | J108: 451800 | K108: 451800 | L108: 451800 | M108: 451800 | N108: 451800
B109: 5.7 Management & Planning | D109: In scope | E109: 0 | F109: 1 | G109: 0 | J109: 0 | K109: 0 | L109: 0 | M109: 0 | N109: 0
B110: 5.8 Meter Installation Contract Review | D110: In scope | E110: 0 | F110: 1 | G110: 0 | J110: 0 | K110: 0 | L110: 0 | M110: 0 | N110: 0
J111: 0 | K111: 0 | L111: 0 | M111: 0 | N111: 0
B112: 7.0 Regulation | J112: 0 | K112: 0 | L112: 0 | M112: 0 | N112: 0
B113: 7.1 Tariff Optimisation | C113: Out of scope | D113: Out of scope | H113: Should not need any changes in tariffs etc. | J113: 0 | K113: 0 | L113: 0 | M113: 0 | N113: 0
B114: 7.2 Price Review Process | C114: Out of scope | D114: Out of scope | J114: 0 | K114: 0 | L114: 0 | M114: 0 | N114: 0
B115: 7.3 Accruals | C115: Out of scope | D115: Out of scope | J115: 0 | K115: 0 | L115: 0 | M115: 0 | N115: 0
B116: 7.4 Tariff Revenue | C116: Out of scope | D116: Out of scope | J116: 0 | K116: 0 | L116: 0 | M116: 0 | N116: 0
B117: 7.5 Price Review 2016-2020 | C117: Out of scope | D117: Out of scope | J117: 0 | K117: 0 | L117: 0 | M117: 0 | N117: 0
B118: 7.6 Transitional Feed In Tariff (TFIT) | C118: Out of scope | D118: Out of scope | J118: 0 | K118: 0 | L118: 0 | M118: 0 | N118: 0
B119: 7.7 Monthly Billing | C119: Out of scope | D119: Out of scope | J119: 0 | K119: 0 | L119: 0 | M119: 0 | N119: 0
B120: 7.8 Flexible Pricing | C120: Out of scope | D120: Out of scope | J120: 0 | K120: 0 | L120: 0 | M120: 0 | N120: 0
J121: 0 | K121: 0 | L121: 0 | M121: 0 | N121: 0
B122: 8.0 Customer Management | J122: 0 | K122: 0 | L122: 0 | M122: 0 | N122: 0
B123: 8.1 AMI Customer Strategy & RetailerManagement | D123: Partially in scope | E123: 0.3 | F123: 1 | G123: =F123*E123*$C$7*$C$6 -> 338850 | J123: 67770 | K123: 67770 | L123: 67770 | M123: 67770 | N123: 67770
B124: 8.2 Customer Interaction & Treatment Pre-deployment | C124: Out of scope | D124: Out of scope | J124: 0 | K124: 0 | L124: 0 | M124: 0 | N124: 0
B125: 8.3 Customer Self-Service | C125: Out of scope | D125: Out of scope | J125: 0 | K125: 0 | L125: 0 | M125: 0 | N125: 0
B126: 8.4 Customer Response Plan to support the AMI rollout Pre-deployment | C126: Out of scope | D126: Out of scope | J126: 0 | K126: 0 | L126: 0 | M126: 0 | N126: 0
B127: 8.5 Revenue Management Pre-deployment | C127: Out of scope | D127: Out of scope | J127: 0 | K127: 0 | L127: 0 | M127: 0 | N127: 0
B128: 8.6 Customer Energy Data Access (CEDA) Trial | C128: Out of scope | D128: Out of scope | J128: 0 | K128: 0 | L128: 0 | M128: 0 | N128: 0
B129: 8.7 Meter Event Analysis for Revenue Protection | C129: Out of scope | D129: Out of scope | J129: 0 | K129: 0 | L129: 0 | M129: 0 | N129: 0
B130: 8.8 Network Analysis for Revenue Protection | C130: Out of scope | D130: Out of scope | J130: 0 | K130: 0 | L130: 0 | M130: 0 | N130: 0
B131: 8.10 CEDA Implementation | C131: Out of scope | D131: Out of scope | J131: 0 | K131: 0 | L131: 0 | M131: 0 | N131: 0
B132: 8.12 Customer & Community Engagement & Education | D132: Partially in scope | E132: 0.3 | F132: 1 | G132: =F132*E132*$C$7*$C$6 -> 338850 | H132: No doubt a rollout will cause more complaints | J132: 67770 | K132: 67770 | L132: 67770 | M132: 67770 | N132: 67770
B133: 8.13 TCE to reference UIQ | C133: Out of scope | D133: Out of scope | J133: 0 | K133: 0 | L133: 0 | M133: 0 | N133: 0
B134: 8.14 Customer Portal Refinements | C134: Out of scope | D134: Out of scope | J134: 0 | K134: 0 | L134: 0 | M134: 0 | N134: 0
J135: 0 | K135: 0 | L135: 0 | M135: 0 | N135: 0
B136: 10.0 Meter Strategy | J136: =IF($F136>=$J$12,1,$F136*5)*$C$5*$C$7*$E136 -> 0 | K136: 0 | L136: 0 | M136: 0 | N136: 0
B137: 10.1 Meter Strategies | D137: Partially in scope | E137: 0 | F137: 1 | G137: =F137*E137*$C$7*$C$6 -> 0 | J137: 0 | K137: 0 | L137: 0 | M137: 0 | N137: 0
B138: 10.2 Meter Provisioning Policy & Stds -Release 1 / 1A | C138: Out of scope | D138: Out of scope | J138: 0 | K138: 0 | L138: 0 | M138: 0 | N138: 0
B139: 10.3 Meter Provision Policy & Stds -Release 2 & 3 | C139: Out of scope | D139: Out of scope | J139: 0 | K139: 0 | L139: 0 | M139: 0 | N139: 0
B140: 10.4 GIS | C140: Out of scope | D140: Out of scope | J140: 0 | K140: 0 | L140: 0 | M140: 0 | N140: 0
B141: 10.5 Asset Management | D141: Partially in scope | E141: 1 | F141: 1 | G141: =F141*E141*$C$7*$C$6 -> 1129500 | J141: 225900 | K141: 225900 | L141: 225900 | M141: 225900 | N141: 225900
B142: 10.6 BAU Transition | C142: Out of scope | D142: Out of scope | J142: 0 | K142: 0 | L142: 0 | M142: 0 | N142: 0
B143: 10.7 BAU & Support (Technical) | C143: Out of scope | D143: Out of scope | J143: 0 | K143: 0 | L143: 0 | M143: 0 | N143: 0
J144: 0 | K144: 0 | L144: 0 | M144: 0 | N144: 0
J145: 0 | K145: 0 | L145: 0 | M145: 0 | N145: 0
B146: 11.0 Meter Data Management | J146: 0 | K146: 0 | L146: 0 | M146: 0 | N146: 0
B147: 11.1 AMI Address Cleansing | J147: 0 | K147: 0 | L147: 0 | M147: 0 | N147: 0
B148: 11.2 AMI Control of Customer Keys & Access Devices | J148: 0 | K148: 0 | L148: 0 | M148: 0 | N148: 0
B149: 11.4 GIS Information Mgmt & Program Report | D149: Partially in scope | E149: 0.5 | F149: 1 | G149: =F149*E149*$C$7*$C$6 -> 564750 | J149: 112950 | K149: 112950 | L149: 112950 | M149: 112950 | N149: 112950
B150: 11.5 CSG Information Mgmt & Program Reporting | D150: Partially in scope | E150: 0.5 | F150: 1 | G150: 564750 | J150: 112950 | K150: 112950 | L150: 112950 | M150: 112950 | N150: 112950
B151: 11.6 AMI Meter Data Provider Accreditation | C151: Out of scope | D151: Out of scope | J151: 0 | K151: 0 | L151: 0 | M151: 0 | N151: 0
B152: 11.7 AMI Meter Data Transition | C152: Out of scope | D152: Out of scope | J152: 0 | K152: 0 | L152: 0 | M152: 0 | N152: 0
B153: 11.9 Type 5 to Market | C153: Out of scope | D153: Out of scope | J153: 0 | K153: 0 | L153: 0 | M153: 0 | N153: 0
B154: 11.10 AMI Remote Connect and Disconnect | C154: Out of scope | D154: Out of scope | J154: 0 | K154: 0 | L154: 0 | M154: 0 | N154: 0
B155: 11.11 AMI Tariff Implementation (inc. Re-assignment) Build Capability | C155: Out of scope | D155: Out of scope | J155: 0 | K155: 0 | L155: 0 | M155: 0 | N155: 0
J156: 0 | K156: 0 | L156: 0 | M156: 0 | N156: 0
B157: 12.0 AMI Deployment | J157: 0 | K157: 0 | L157: 0 | M157: 0 | N157: 0
B158: 12.1 Program DeploymentPlanning & Management | D158: In scope | E158: 2 | F158: 1 | G158: =F158*E158*$C$7*$C$6 -> 2259000 | J158: 451800 | K158: 451800 | L158: 451800 | M158: 451800 | N158: 451800
B159: 12.2 TechnologyManagement | D159: Partially in scope | E159: 0.5 | F159: 1 | G159: 564750 | J159: 112950 | K159: 112950 | L159: 112950 | M159: 112950 | N159: 112950
B160: 12.3 Field Management & Training | D160: In scope | E160: 1 | F160: 1 | G160: 1129500 | J160: 225900 | K160: 225900 | L160: 225900 | M160: 225900 | N160: 225900
B161: 12.4 Customer Interaction & Treatment Deployment | D161: In scope | E161: 0.1 | F161: 1 | G161: 112950 | J161: 22590 | K161: 22590 | L161: 22590 | M161: 22590 | N161: 22590
B162: 12.5 Data Management | C162: Out of scope | D162: Out of scope | J162: 0 | K162: 0 | L162: 0 | M162: 0 | N162: 0
B163: 12.6 BAU Metering | C163: Out of scope | D163: Out of scope | J163: 0 | K163: 0 | L163: 0 | M163: 0 | N163: 0
B164: 12.7 Customer Response Plan to Support AMI Rollout Deployment | D164: In scope | E164: 1 | F164: 1 | G164: =F164*E164*$C$7*$C$6 -> 1129500 | J164: 225900 | K164: 225900 | L164: 225900 | M164: 225900 | N164: 225900
B165: 12.8 Revenue Management Deployment | C165: Out of scope | D165: Out of scope | J165: 0 | K165: 0 | L165: 0 | M165: 0 | N165: 0
B166: 12.11 – 12.20 Region 1 to Region 10 Region | D166: In scope | E166: 0 | F166: 1 | G166: =F166*E166*$C$7*$C$6 -> 0 | J166: 0 | K166: 0 | L166: 0 | M166: 0 | N166: 0
B167: 12.21 AMI Meters in WIP 2011 | C167: Out of scope | D167: Out of scope | J167: 0 | K167: 0 | L167: 0 | M167: 0 | N167: 0
B168: 12.22 AMI Meters in WIP 2012 | C168: Out of scope | D168: Out of scope | J168: =IF($F168>=$J$12,1,$F168*5)*$C$5*$C$7*$E168 -> 0 | K168: =IF($F168>=K$12,1,IF((($F168-K$12)>=0),($F168-K$12)*5,0))*$C$5*$C$7*$E168 -> 0 | L168: 0 | M168: 0 | N168: 0
B169: 12.23 AMI Meters in Work In Progress 2013 | C169: Out of scope | D169: Out of scope | J169: 0 | K169: 0 | L169: 0 | M169: 0 | N169: 0
J170: 0 | K170: 0 | L170: 0 | M170: 0 | N170: 0
B171: 13.0 Operate | J171: 0 | K171: 0 | L171: 0 | M171: 0 | N171: 0
B172: 13.1 Meter Strategy & Provider | D172: In scope | E172: 0 | F172: 1 | G172: =F172*E172*$C$7*$C$6 -> 0 | J172: 0 | K172: 0 | L172: 0 | M172: 0 | N172: 0
B173: 13.2 AMI Technology | D173: In scope | E173: 1 | F173: 1 | G173: 1129500 | J173: 225900 | K173: 225900 | L173: 225900 | M173: 225900 | N173: 225900
B174: 13.3 IT | D174: Out of scope | J174: 0 | K174: 0 | L174: 0 | M174: 0 | N174: 0
B175: 13.4 Data Management BAU | D175: Out of scope | J175: 0 | K175: 0 | L175: 0 | M175: 0 | N175: 0
B176: 13.5 AMI Enhancements | D176: In scope | E176: 0 | F176: 1 | G176: =F176*E176*$C$7*$C$6 -> 0 | J176: 0 | K176: 0 | L176: 0 | M176: 0 | N176: 0
B177: 13.6 AMI Communications Control | D177: In scope | E177: 1 | F177: 1 | G177: 1129500 | J177: 225900 | K177: 225900 | L177: 225900 | M177: 225900 | N177: 225900
B178: 13.7 TechnologyAssurance | D178: In scope | E178: 1 | F178: 1 | G178: 1129500 | J178: 225900 | K178: 225900 | L178: 225900 | M178: 225900 | N178: 225900
B179: 13.8 HAN Support | C179: Out of scope | D179: Out of scope | J179: 0 | K179: 0 | L179: 0 | M179: 0 | N179: 0
B180: 13.9 OperationsManagement & Support | D180: In scope | E180: 0.5 | F180: 1 | G180: =F180*E180*$C$7*$C$6 -> 564750 | J180: 112950 | K180: 112950 | L180: 112950 | M180: 112950 | N180: 112950
B181: 13.10 Data Management Operations | D181: In scope | E181: 1 | F181: 1 | G181: 1129500 | J181: 225900 | K181: 225900 | L181: 225900 | M181: 225900 | N181: 225900
B182: 13.11 AMI Corporate | C182: Out of scope | D182: Out of scope
B183: 13.12 Price Review 2016 -2026 | C183: Out of scope | D183: Out of scope
B185: 14.0 Non-recoverable project (CAPEX)
B186: 14.1 Generation 2 Communications | C186: Out of scope | D186: Out of scope
B187: 14.2 Customer Initiated Meter Replacement (Solar) | C187: Out of scope | D187: Out of scope
B188: 14.3 Customer Initiated Meter Replacement (Other) | C188: Out of scope | D188: Out of scope
B189: 14.4 New Connections Installations | C189: Out of scope | D189: Out of scope
B190: 14.5 Servicing (NewConnections & Replacements) | C190: Out of scope | D190: Out of scope
B192: 15.0 Non-recoverable project (OPEX)
B193: 15.2 PV Installations | C193: Out of scope | D193: Out of scope
B194: 15.3 Meter Maintenance (ACS) | C194: Out of scope | D194: Out of scope
B195: 15.4 Meter Maintenance (Abolishment) | C195: Out of scope | D195: Out of scope
B196: 15.5 Special Reading | C196: Out of scope | D196: Out of scope
B197: 15.6 Other Connections (Function Code 800) | C197: Out of scope | D197: Out of scope
B198: 15.1 Victorian Energy Efficiency Target (VEET) | C198: Out of scope | D198: Out of scope
B199: 15.6 Other Connections (Function Code 800) | C199: Out of scope | D199: Out of scope
J200: 2026-27 | K200: 2027-28 | L200: 2028-29 | M200: 2029-30 | N200: 2030-31 | O200: Total
G201: =SUM(G14:G199)*0.5 -> 12938050 | J201: =SUM(J14:J200) -> 6163760 | K201: =SUM(K14:K200) -> 4721310 | L201: 4721310 | M201: 4721310 | N201: 4495410 | O201: =SUM(J201:N201) -> 24823100
J204: 2026-27 | K204: 2027-28 | L204: 2028-29 | M204: 2029-30 | N204: 2030-31 | O204: Total
B205: Powercor | C205: 989079.3679 | D205: =C205/$C$208 -> 0.4805305369 | I205: Powercor | J205: =J$201*$D205 -> 2961874.902 | K205: =K$201*$D205 -> 2268733.629 | L205: 2268733.629 | M205: 2268733.629 | N205: 2160181.781 | O205: =SUM(J205:N205) -> 11928257.57
B206: Citipower | C206: 343734.6321 | D206: =C206/$C$208 -> 0.1669987189 | I206: Citipower | J206: =J$201*$D206 -> 1029340.024 | K206: =K$201*$D206 -> 788452.7216 | L206: 788452.7216 | M206: 788452.7216 | N206: 750727.711 | O206: =SUM(J206:N206) -> 4145425.899
B207: UE | C207: 725493 | D207: 0.3524707442 | I207: UE | J207: 2172545.074 | K207: 1664123.649 | L207: 1664123.649 | M207: 1664123.649 | N207: 1584500.508 | O207: 8749416.529
C208: =SUM(C205:C207) -> 2058307 | I208: Total | J208: =SUM(J205:J207) -> 6163760 | K208: =SUM(K205:K207) -> 4721310 | L208: 4721310 | M208: 4721310 | N208: 4495410 | O208: 24823100
... 5 more rows
